Cogmind - Beta 17 @@@ ROGUE MODE // 2026.08.01 @ 02:48:11 Player: aperiodic Result: Heading to fleet! Performance ------------- Evolutions (9) 4500 Regions Visited (19) 3800 Robots Destroyed (518) 2590 Value Destroyed (32854) 32854 Prototype IDs (383) 7660 Alien Tech Used (6) 1200 Bonus (57352) 57352 TOTAL SCORE: 109956 Bonus ------- Triggered High Security 500 High Alert Combat Kills 23767 Follower Combat Kills 3788 Network Hubs Disabled 400 Registered with UFD 300 Met Optimus in HQ 500 Built Enhanced Grunts 300 Found Hidden Lab 3000 Used Core Reset Matrix 3000 Scanned by Researcher 500 Met Optimus at Protoforge 1000 Destroyed MAIN.C Guards 500 Met MAIN.C 5000 Destroyed MAIN.C Shell 5000 Destroyed MAIN.C 10000 Win 3000 Friendly Fire -3203 Cogmind --------- Core Integrity 568/1600 Matter 733/1050 Energy 560/570 System Corruption 8% Temperature Cool (16) Movement Hovering (44) Location To Fleet Rendezvous Parts ------- > --- POWER (2) -------- Concept Zero-point Core > --- PROPULSION (7) --- Antigrav Array Experimental Gyrokinetic Inverter Combat Linear Gravjet Concept Combat Aerolev Unit Concept Gyrokinetic System > --- UTILITY (14) ----- Advanced Heat Sink Concept Phasing Heat Sink Concept Antigrav Storage Unit Energy Well Concept NT7 Matterbank Advanced Quantum Shading Machine Spectral Analyzer Concept Networked Targeting System Experimental Core Analyzer Graphene Brace > --- WEAPON (3) ------- Enhanced Quantum Rifle > --- INVENTORY (25) --- Concept Chromion Battery (800) Concept Cloak Mesh Concept Cloak Mesh Concept Beam Splitter Transdimensional Reconstructor High-powered Transdimensional Reconstructor Enhanced Quantum Rifle Enhanced Nova Cannon Botcube Peak State ------------ > --- POWER ------------ Hybrid Graviton Reactor Concept Zero-point Core > --- PROPULSION ------- Concept Combat Aerolev Unit Concept Combat Aerolev Unit Concept Combat Aerolev Unit Concept Combat Aerolev Unit Concept Combat Aerolev Unit Concept Gyrokinetic System Concept Gyrokinetic System > --- UTILITY ---------- Concept Antigrav Storage Unit Spectral Analyzer Experimental Active Sensor Suite Experimental Target Analyzer Experimental Core Analyzer Experimental Reaction Control System Concept Cloak Mesh Concept Core Shell Medium Regenerative Plating Graphene Brace Concept Beam Splitter Experimental Force Field Deep Network Scanner > --- WEAPON ----------- Concept Plasma Driver Concept XC Strikerail Concept XC Strikerail > --- INVENTORY -------- Concept Zero-point Core Concept Gyrokinetic System Concept Phasing Heat Sink Concept Chromion Battery Concept NT7 Matterbank Concept Networked Targeting System Advanced Phase Shifter Concept Cloak Mesh Medium Reactive Plating Medium Insulated Plating Experimental Focal Shield Experimental EM Shield Experimental EM Disruption Field Concept Antimissile System Experimental System Purifier Concept Impact Drone Bay Concept Impact Drone Bay Transdimensional Reconstructor High-powered Transdimensional Reconstructor Concept XC Strikerail Concept XC Strikerail Concept Tactical Fusion Warhead Botcube [Rating: 306] Favorites ----------- Power Micro Fission Core Engine Light Ion Engine Power Core Micro Fission Core Reactor Micro Antimatter Reactor Propulsion Concept Combat Aerolev Unit Treads Improved Treads Leg Enhanced Flexi-carbon Leg Wheel Overtuned Huge Scrapsphere Hover Unit Concept Combat Aerolev Unit Flight Unit Cooled Q-thruster Utility Spectral Analyzer Device Self-contained Transmogrifier Storage Medium Storage Unit Processor Spectral Analyzer Hackware Advanced Hacking Suite Protection Medium Regenerative Plating Weapon Concept XC Strikerail Energy Gun Heavy Quantum Rifle Energy Cannon Subdweller Beam Cannon Ballistic Gun Concept XC Strikerail Ballistic Cannon Hardcell Cannon Launcher Compact Tesla Bomb Launcher Special Weapon Mining Laser Impact Weapon Heavy Mace Slashing Weapon Plasma Sword Piercing Weapon Kinetic Spear Build | -11 -10 -10 -7 -7 -5 -5 -5 -5 -5 -4 -4 -4 -3 -3 -2 -2 -2 -1 -1 ------- Run | Yrd Mat Sub Rec Scr Fac Ext Cet Arc Hub Fac Arm Lab Res Tes Res Qua Frg Acc Com Slots Evolved 18 | . . . . . 10 . . . . 2 . . 2 . 2 . . 2 . Power 1 | . . . . . 1 . . . . . . . . . . . . . . Propulsion 4 | . . . . . 3 . . . . 1 . . . . . . . . . Utility 12 | . . . . . 6 . . . . 1 . . 2 . 2 . . 1 . Weapon 1 | . . . . . . . . . . . . . . . . . . 1 . Parts Attached 348 | 8 7 13 1 7 12 12 11 2 10 12 16 5 19 25 6 7 125 4 46 Power 35 | 1 1 1 . 1 1 1 3 . 1 1 1 . 1 4 2 . 14 . 2 Engine 5 | 1 1 1 . 1 . . . . . . . . . . . . 1 . . Core 6 | . . . . . 1 1 . . . 1 . . . 1 . . 2 . . Reactor 24 | . . . . . . . 3 . 1 . 1 . 1 3 2 . 11 . 2 Propulsion 73 | 2 1 3 . . 3 3 1 1 7 3 7 . 1 6 . 1 28 . 6 Treads 5 | . . 2 . . . 1 1 1 . . . . . . . . . . . Leg 13 | . . . . . . . . . 7 3 . . . . . . 3 . . Wheel 6 | 2 1 1 . . . 2 . . . . . . . . . . . . . Hover 21 | . . . . . . . . . . . . . . . . . 15 . 6 Flight 28 | . . . . . 3 . . . . . 7 . 1 6 . 1 10 . . Utility 171 | 2 1 3 1 3 7 5 5 1 1 4 4 3 11 11 4 6 68 2 29 Device 84 | 1 . . . 2 2 2 2 1 . 2 1 1 5 5 2 4 34 1 19 Storage 14 | 1 1 . . 1 1 . . . . . . . . 2 . 1 2 . 5 Processor 22 | . . . . . 1 2 . . . . 3 . 1 1 1 . 11 . 2 Hackware 11 | . . . . . 3 . . . 1 2 . 1 . 1 1 . . 1 1 Protection 40 | . . 3 1 . . 1 3 . . . . 1 5 2 . 1 21 . 2 Artifact . | . . . . . . . . . . . . . . . . . . . . Weapon 69 | 3 4 6 . 3 1 3 2 . 1 4 4 2 6 4 . . 15 2 9 Energy Gun 16 | 2 . 1 . . . . 1 . . 1 2 1 2 1 . . 1 . 4 Energy Cannon 13 | . . 3 . 1 . . . . . 1 1 1 3 . . . 1 . 2 Ballistic Gun 26 | 1 2 1 . 1 . 2 1 . 1 1 . . 1 2 . . 9 2 2 Ballistic Cannon 2 | . . . . . . . . . . . . . . 1 . . . . 1 Launcher 6 | . 1 1 . . . . . . . . 1 . . . . . 3 . . Special Weapon 2 | . 1 . . . . 1 . . . . . . . . . . . . . Impact Weapon . | . . . . . . . . . . . . . . . . . . . . Slashing Weapon 2 | . . . . 1 1 . . . . . . . . . . . . . . Piercing Weapon 2 | . . . . . . . . . . 1 . . . . . . 1 . . Special Melee Weapon . | . . . . . . . . . . . . . . . . . . . . Unidentified Prototypes 64 | . . . . 1 2 . 7 . 1 2 . 8 2 10 . 2 25 . 4 Corrupted Parts 2 | . . . . . . . . . 1 . . . . . . . . . 1 System Corruption 20 | . . . . . . . . . 11 . . . . . . . . . 9 Parts Lost 96 | . 1 1 . . 2 4 . . 4 10 2 . 4 3 2 . 23 . 40 Power 14 | . . . . . . 1 . . 2 1 . . 2 1 1 . 4 . 2 Propulsion 16 | . . 1 . . 1 2 . . . 3 . . 1 . . . 2 . 6 Utility 47 | . . . . . 1 1 . . . 2 2 . 1 2 1 . 14 . 23 Weapon 19 | . 1 . . . . . . . 2 4 . . . . . . 3 . 9 Highest Loss Streak 13 | . 1 1 . . 2 2 . . 2 3 2 . 4 1 2 . 8 . 13 To Critical Strikes 1 | . . . . . . . . . . 1 . . . . . . . . . Average Backups 9 | 2 11 5 13 5 8 9 8 9 9 8 4 2 2 5 7 7 16 22 17 Power . | . 1 . . . . . . . . . . . . . 1 . . 1 . Propulsion . | 1 3 2 2 . . . . . . . . . . . . . 1 1 . Utility 5 | . 1 . 3 3 5 6 6 6 6 5 3 1 1 1 2 2 9 15 11 Weapon 2 | . 5 2 6 1 . 1 1 2 1 1 1 . 1 3 4 3 2 3 3 Tool/Special . | . . . . . . . . . . . . . . . . . . . . Unused Backups 65 | . 3 5 . 5 1 8 9 . 5 . 1 . . 2 . 4 20 . 2 Power 3 | . . . . . . . . . . . . . . . . . 3 . . Propulsion 9 | . 1 1 . . . 2 1 . . . . . . . . . 4 . . Utility 37 | . . 2 . 1 1 6 7 . 5 . . . . 1 . 2 12 . . Weapon 11 | . 2 2 . 2 . . 1 . . . . . . 1 . 2 1 . . Tool/Special 5 | . . . . 2 . . . . . . 1 . . . . . . . 2 Average Slot Usage (%) 90 | . 99 85 100 95 81 76 87 87 93 88 88 81 70 81 83 83 91 95 88 Engine 3 | . 14 14 14 4 . . . . . . . . . . . . . . . Core 4 | . . . . 6 9 7 5 5 4 3 4 4 . 1 . . 1 3 3 Reactor 3 | . . . . 3 . . 4 5 5 4 4 4 1 5 7 8 5 3 2 Treads 4 | . . 17 10 5 . 2 5 4 . . . . . . . . . . . Leg 1 | . . . . 2 . . . . 15 13 1 . . . . . . . . Wheel 4 | . 28 10 17 4 . 2 5 5 . . . . . . . . . . . Hover 4 | . . . . 1 . . . . . . . . . . . . 18 26 25 Flight 9 | . . . . 11 27 15 11 11 11 10 21 25 22 23 20 20 5 . . Device 14 | . 14 . . 23 9 6 5 5 5 5 13 12 12 13 16 16 16 23 24 Storage 5 | . 14 1 14 2 11 11 11 11 11 10 5 3 . 1 4 4 4 3 3 Processor 6 | . . . . . 4 8 11 11 11 10 14 12 7 5 6 8 17 11 11 Hackware 3 | . . . . . 9 10 5 5 9 13 10 8 11 16 13 11 4 4 1 Protection 4 | . . 12 14 1 . . 4 4 1 5 . . 6 3 4 5 7 4 6 Energy Gun 3 | . 18 1 . 9 . . 2 . . 3 2 2 2 1 3 3 . . . Energy Cannon 4 | . . 23 28 3 . . . . . . 1 5 . . . . . 1 . Ballistic Gun 3 | . 6 2 . 1 . 3 5 5 8 1 4 . 1 3 3 2 6 8 4 Ballistic Cannon 1 | . . . . 5 . . . . . . . . . . . . . . . Launcher 2 | . 1 . . 5 . . . . . . . . . . . . . . . Slashing Weapon 1 | . . . . 2 5 3 2 4 2 2 . . . . . . . . . Peak Build Rating 306 | 7 8 13 14 59 87 103 116 111 122 135 145 155 183 210 204 203 285 306 301 Average Rating 103 | 5 7 11 13 42 77 84 109 110 110 118 118 141 157 188 194 192 239 297 261 On Entrance 114 | . 7 8 13 13 49 76 102 108 111 115 94 145 141 168 186 193 184 282 297 Avg Prop Armor Cover (%) 9 | . . 1 . 13 . 9 7 12 2 1 4 . 1 2 . . 21 . 1 Naked Turns . | . . . . . . . . . . . . . . . . . . . . Heaviest Build 143 | 13 29 41 44 44 30 49 61 48 63 73 45 44 55 74 77 85 119 109 143 Greatest Support 127 | 26 26 40 40 58 33 29 20 20 71 116 60 63 56 82 77 77 118 112 127 Greatest Overweight (x) 15 | 1 1 3 1 14 1 2 3 15 2 1 1 . . 1 1 1 1 . 1 Average Overweight (x) 1 | . . . 1 4 . . 2 12 . . . . . . . . . . . Largest Inventory Capacity 25 | 8 15 15 15 15 10 10 10 10 10 10 10 5 5 10 10 10 25 25 25 Average Capacity 10 | 7 13 6 15 5 10 10 10 10 10 10 5 5 5 7 10 10 19 25 25 Most Carried 25 | 5 15 15 15 15 10 10 10 10 10 10 10 5 5 10 10 10 25 25 25 Average Carried 9 | 3 11 5 14 5 9 9 8 9 9 9 5 3 4 6 9 9 17 23 19 Final Capacity 25 | 8 15 15 15 10 10 10 10 10 10 10 5 5 5 10 10 10 25 25 25 Final Carried 25 | 5 15 15 15 10 10 10 9 10 9 10 5 5 4 9 10 10 25 24 9 Scrap Suit Usage (%) 3 | . . . . . . 41 35 . 70 . . . . . . . . . . Parts Cannibalized 5 | . . . . . . 1 2 . 2 . . . . . . . . . . Transmogrified Parts 149 | . . . . 149 . . . . . . . . . . . . . . . Integrity Recovered 166 | . . . . 166 . . . . . . . . . . . . . . . Class Distribution -------------------- 38% | Mutant 18% | Commander-Scrapper 11% | Scavenger-Mutant 8% | Subdweller-Mutant 7% | Hacker-Sprinter 3% | Scavenger-Scout Dominant Class ---------------- Mutant | -10/Materials Subdweller-Mutant | -10/Subcaves Mutant | -7/Recycling Mutant | -7/Scraptown Hacker-Sprinter | -5/Factory Hacker-Sprinter | -5/Extension Commander-Mutant | -5/Cetus Commander-Scrapper | -5/Archives Scavenger-Mutant | -5/Hub_04(d) Scavenger-Mutant | -4/Factory Hacker-Sprinter | -4/Armory Hacker-Sprinter | -4/Lab Hacker-Sprinter | -3/Research Wizard-Sprinter | -3/Testing Hacker-Sprinter | -2/Research Hacker-Sprinter | -2/Quarantine Scavenger-Mutant | -2/Protoforge Scavenger-Scout | -1/Access Scavenger-Scout | -1/Command Resources | -11 -10 -10 -7 -7 -5 -5 -5 -5 -5 -4 -4 -4 -3 -3 -2 -2 -2 -1 -1 ----------- Run | Yrd Mat Sub Rec Scr Fac Ext Cet Arc Hub Fac Arm Lab Res Tes Res Qua Frg Acc Com Matter Collected 21797 | 313 130 623 112 80 365 517 277 73 507 289 219 . 429 1088 492 306 8592 670 6715 Remotely 10 | . . . . . . . . . . . . . . . . . . . 10 Salvage Created 28963 | 84 310 622 99 . 234 1083 152 319 1619 621 80 . 429 1333 1900 737 8810 492 10039 Parts 1205 | 6 29 41 7 . 8 28 31 27 66 25 9 . 16 83 70 17 416 12 314 Haulers Intercepted 7 | . 2 . . . 1 . . . . . . . 1 1 . 2 . . . Recyclers Shooed 13 | . . . . . . . . . 1 1 . . 5 2 . 3 . 1 . Parts Field Recycled . | . . . . . . . . . . . . . . . . . . . . Retrieved Matter . | . . . . . . . . . . . . . . . . . . . . Parts Self-Destructed 12 | . . 12 . . . . . . . . . . . . . . . . . Prevented . | . . . . . . . . . . . . . . . . . . . . Parts Restored 14 | . . . . . . . . . . . . . . . . . 14 . . Faulty 14 | . . . . . . . . . . . . . . . . . 14 . . Kills | -11 -10 -10 -7 -7 -5 -5 -5 -5 -5 -4 -4 -4 -3 -3 -2 -2 -2 -1 -1 ------- Run | Yrd Mat Sub Rec Scr Fac Ext Cet Arc Hub Fac Arm Lab Res Tes Res Qua Frg Acc Com Combat Hostiles Destroyed 421 | . 11 15 1 . . 3 1 . 19 11 6 . 1 12 24 4 135 4 174 Melee 14 | . . . . . . 2 . . 4 7 1 . . . . . . . . Guns 195 | . 4 2 . . . 1 1 . 15 4 1 . 1 7 24 . 87 4 44 Cannons 67 | . . 9 . . . . . . . . . . . 5 . 4 46 . 3 AOE 144 | . 7 4 . . . . . . . . 4 . . . . . 2 . 127 Classes Destroyed 32 | 2 5 3 . . . 1 1 1 4 . 1 . . 1 1 1 8 . 3 Worker 20 | . 1 . . . 2 1 . . 9 . . . 1 1 3 1 . . 1 Builder 10 | . 1 . 1 . . 1 . . 1 1 . . . 5 . . . . . Tunneler 3 | 1 . . . . . . . . 1 . . . 1 . . . . . . Hauler 7 | . 2 . . . 1 . . . . . . . 1 1 . 2 . . . Recycler 18 | 1 . . . . 1 6 . . 1 . . . 2 2 . 1 . 1 3 Mechanic 17 | . . . . . . . . . 1 . . . . . . . . . 16 Operator 12 | . . . . . . . . 9 1 1 1 . . . . . . . . Drone 27 | . . . . . . . . . . . . . . . . . 27 . . Turret 1 | . . 1 . . . . . . . . . . . . . . . . . Watcher 12 | . . . . . . 1 . . 1 . . . . 2 2 3 . . 3 Swarmer 32 | . 9 4 . . . . . . 2 4 4 . . . 6 . 2 . 1 Saboteur 14 | . . . . . . . . . . . 2 . . . . . . . 12 Grunt 96 | . 2 1 . . . 1 . . 10 3 . . . 2 14 . 11 2 50 Brawler 12 | . . . . . . . . . 2 1 . . . . . . 4 . 5 Duelist 17 | . . . . . . . . . 3 . . . . . . . 4 . 10 Protector 11 | . . . . . . . . . . . . . . . . . 3 . 8 Sentry 17 | . . 1 1 . . 2 . . 1 1 . . . . 1 . 10 . . Specialist 11 | . . . . . . . . . . . . . . . . 2 . . 9 Hunter 36 | . . . . . . . . . . . . . . 4 2 . 10 2 18 Programmer 58 | . . . . . . . . . 1 2 . . 1 6 . 2 6 . 40 Heavy 1 | . . . . . . . . . . . . . . . 1 . . . . Cetus Guard 1 | . . . . . . . 1 . . . . . . . . . . . . Hotshot 17 | . . . . . . . . . . . . . . . . . 17 . . Decapitator 7 | . . . . . . . . . . . . . . . . . 7 . . Immortal 6 | . . . . . . . . . . . . . . . . . 6 . . Combat Programmer 1 | . . . . . . . . . . . . . . . . . . . 1 Investigator 2 | . . . . . . . . . . . . . . . . . . . 2 Striker 18 | . . . . . . . . . . . . . . . . . 8 . 10 Executioner 16 | . . . . . . . . . . . . . . . . . 8 . 8 Alpha 7 2 | . . . . . . . . . . . . . . . . . 2 . . V-Series 10 | . . . . . . . . . . . . . . . . . 10 . . Subdweller 9 | . . 9 . . . . . . . . . . . . . . . . . Scraphulk 1 | . . . . . . . . . . . . . . . . . 1 . . Botcube 1 | . . . . . . . 1 . . . . . . . . . . . . Assembled 1 | . . . . . . . . . . . . . . . . . . . 1 Golem 1 | . . . . . . . . . . . . . . . . . . . 1 Best Kill Streak 44 | 1 4 5 1 . 2 3 1 8 12 4 4 . 3 4 11 4 16 2 44 Combat Bots Only 38 | . 3 4 1 . . 1 1 . 3 4 4 . 1 3 9 2 16 2 38 Max Kills in Single Turn 11 | 1 3 4 1 . 1 1 1 1 9 1 3 . 1 2 4 1 4 2 11 Gunslinging 1 | . . . . . . . . . . . . . . . . . 1 1 1 Exploded 8 | . 2 4 . . . . . . . . 3 . . . . . 1 . 8 Melee 1 | . . . . . . 1 . . 1 1 1 . . . . . . . . Uniques/NPCs Destroyed 3 | . . . . . . . 1 . . . . . . . . . . . 2 A7 (-5/Cetus) MAIN.C Shell (-1/Command) MAIN.C (-1/Command) Combat | -11 -10 -10 -7 -7 -5 -5 -5 -5 -5 -4 -4 -4 -3 -3 -2 -2 -2 -1 -1 -------- Run | Yrd Mat Sub Rec Scr Fac Ext Cet Arc Hub Fac Arm Lab Res Tes Res Qua Frg Acc Com Hostile Shots Fired 2231 | . 29 48 63 . 46 38 12 2 73 192 11 . 87 110 77 129 605 24 685 Missed 988 | . 5 15 18 . 20 17 5 . 17 54 7 . 48 52 37 72 270 12 339 Intercepted 18 | . . . . . . . . . . . . . . . . . 3 . 15 Deflected 11 | . . . . . . . . . . 11 . . . . . . . . . Hits 1243 | . 24 33 45 . 26 21 7 2 56 138 4 . 39 58 40 57 335 12 346 Melee 34 | . . . . . . . . . 2 4 1 . . . . . 14 . 13 Projectile 1209 | . 24 33 45 . 26 21 7 2 54 134 3 . 39 58 40 57 321 12 333 AOE 15 | . . 2 . . . . . . . . . . . . . . 6 . 7 Critical Strikes 83 | . . . . . . . 2 . 3 6 1 . 1 3 2 2 36 . 27 Actively Blocked 67 | . . . . . . . . . . 2 1 . 1 3 2 2 29 . 27 Part Disruptions 5 | . . . . . . . . . . . . . . . . . . . 5 Damage Taken 27149 | . 219 712 349 . 383 485 137 87 1351 2795 142 . 795 1011 1385 644 7521 37 9096 Core 3610 | . 43 120 37 . 155 99 . 58 227 297 36 . 160 122 104 19 1101 2 1030 Absorbed by Shields 3110 | . . . . . 43 130 35 . . 180 11 . 32 . . 116 1511 38 1014 Redirected to Shielding 962 | . . . . . . . . . . . . . . . . 64 896 2 . Ignored by Resistances 4556 | . . . . . . . . . . . . . . 109 258 . 1837 166 2186 Regen/Repaired (Parts) 3699 | . . . . . . 3 141 . 40 277 26 . . 485 713 409 563 4 1038 Core Remaining (%) 51 | 100 . . . 20 . . . . 46 . . 71 . 78 . . 11 . 35 Volleys Fired 1302 | 11 38 58 47 . 4 17 10 2 58 47 22 39 42 68 83 54 395 22 285 Largest 3 | 1 2 2 2 . 1 2 2 2 2 2 2 1 2 2 2 1 2 3 3 Hottest 204 | 20 100 160 160 . 90 64 64 64 64 98 131 98 163 130 130 100 140 172 204 Shots Fired 1864 | 11 66 96 49 . 4 21 19 4 102 52 27 40 59 91 99 55 593 48 428 Gun 1427 | 11 56 24 . . . 19 19 4 102 52 11 1 39 79 99 35 523 41 312 Cannon 346 | . . 60 49 . 4 . . . . . 14 39 20 12 . 20 67 7 54 Launcher 79 | . 7 5 . . . . . . . . 2 . . . . . 3 . 62 Special 12 | . 3 7 . . . 2 . . . . . . . . . . . . . Kinetic 1220 | 11 28 27 . . . 19 19 4 102 22 4 . 5 42 64 12 574 41 246 Thermal 535 | . 3 69 49 . 4 . . . . 30 21 40 49 49 35 43 16 7 120 Explosive 74 | . 7 . . . . . . . . . 2 . . . . . 3 . 62 Electromagnetic 33 | . 28 . . . . . . . . . . . 5 . . . . . . Robot Hit Streak 71 | 6 10 23 3 . . 10 5 6 8 9 2 . 11 10 11 17 71 14 45 Robot Miss Streak 18 | 1 2 2 1 . . 3 2 . 3 3 3 . 4 8 4 4 18 1 1 Penetration Max 4 | . . . . . . 1 1 . 2 1 . . . 1 4 1 2 2 2 Secondary Targets 21 | . 1 . . . . . 1 . . . . . . . . . 9 2 8 Max Gunslinging Chain 1 | . 1 . . . . . 1 . . . . . . . . . 1 1 1 Capacitor 60 | . . . . . . . . . . . . . . . . . . . 60 Shots Hit Robots 1391 | 10 36 58 9 . 8 34 23 15 79 55 3 . 38 54 62 27 500 31 349 Core Hits 1104 | 2 24 24 2 . 1 10 12 8 63 21 7 . 13 42 56 13 375 12 419 Critical Kills 166 | . . . . . . . . . 1 1 . . . 16 27 9 93 2 17 Critical Parts Destroyed 225 | . . . . . . . 1 . 3 1 1 . . 23 32 14 116 9 25 Critical Strikes 427 | . . 1 . . . 2 1 1 5 4 1 . . 39 60 23 232 11 47 Burn 1 | . . . . . . . . . . 1 . . . . . . . . . Meltdown 1 | . . . . . . . . . . . . . . . . 1 . . . Destroy 421 | . . 1 . . . 1 1 . 5 2 1 . . 39 60 22 231 11 47 Sever 2 | . . . . . . 1 . 1 . . . . . . . . . . . Impale 2 | . . . . . . . . . . 1 . . . . . . 1 . . Melee Attacks 133 | . . . . . 19 23 10 13 22 43 . . . . . . 3 . . Impact . | . . . . . . . . . . . . . . . . . . . . Slashing 116 | . . . . . 19 23 10 13 22 29 . . . . . . . . . Piercing 17 | . . . . . . . . . . 14 . . . . . . 3 . . Sneak Attacks 41 | . . . . . 6 12 10 9 1 2 . . . . . . 1 . . Combat Hostiles . | . . . . . . . . . . . . . . . . . . . . Follow-up Attacks 2 | . . . . . . . . . 2 . . . . . . . . . . Damage Inflicted 88249 | 122 812 1882 249 . 627 1904 1186 1193 3956 1930 408 . 1200 1446 1127 1024 15577 1247 52359 Guns 32423 | 122 469 261 . . . 472 433 108 2344 843 85 . 874 1332 1127 151 13852 1247 8703 Cannons 6740 | . . 1065 249 . . . . . . . 34 . 326 114 . 873 920 . 3159 Explosions 43353 | . 343 556 . . . . . . 1023 . 289 . . . . . 645 . 40497 Melee 5703 | . . . . . 627 1432 753 1085 582 1064 . . . . . . 160 . . Ramming 30 | . . . . . . . . . 7 23 . . . . . . . . . Kinetic 29648 | 122 189 776 . . . 472 433 108 2344 432 56 . 127 391 929 174 14751 1247 7097 Thermal 9800 | . 98 1106 249 . . . . . . 411 63 . 1005 1055 198 850 . . 4765 Explosive 41676 | . 245 . . . . . . . . . 289 . . . . . 645 . 40497 Electromagnetic 1371 | . 280 . . . . . . . 1023 . . . 68 . . . . . . Impact 21 | . . . . . . . . . . . . . . . . . 21 . . Slashing 5160 | . . . . . 627 1432 753 1085 582 681 . . . . . . . . . Piercing 543 | . . . . . . . . . . 383 . . . . . . 160 . . Highest Corruption 13 | . . . . . 3 3 3 3 13 10 10 10 . 6 1 4 10 . 12 Average Corruption 3 | . . . . . 2 3 3 2 11 7 10 4 . 1 1 2 7 . 2 Corruption Purged 50 | . . . . . . . . 3 . . . 7 . . . . 22 . 18 Corruption Blocked . | . . . . . . . . . . . . . . . . . . . . Effects 188 | . . . . . 2 30 9 4 2 13 18 9 . 15 3 7 46 . 30 Message Errors 43 | . . . . . . 2 2 2 1 4 4 4 . 3 1 3 10 . 7 Matter Fused 38 | . . . . . 1 7 2 2 . 1 4 2 . 3 1 . 10 . 5 Heat Flow Errors 26 | . . . . . . 5 1 . . . 3 . . 3 . 1 9 . 4 Energy Discharges 24 | . . . . . . 4 1 . . 4 2 1 . 1 . 1 6 . 4 Parts Rejected 2 | . . . . . . . . . . . . . . . . 1 1 . . Data Loss (minor) 25 | . . . . . 1 6 2 . . 1 1 1 . 2 1 . 6 . 4 Data Loss (major) 13 | . . . . . . 4 . . . 2 . . . 2 . . 2 . 3 Misfires 6 | . . . . . . . . . . 1 1 1 . 1 . 1 . . 1 Alerts 3 | . . . . . . 2 . . . . . . . . . . . . 1 Misdirections 3 | . . . . . . . . . . . 3 . . . . . . . . Weapon Failures 5 | . . . . . . . 1 . 1 . . . . . . . 2 . 1 Overload Shots . | . . . . . . . . . . . . . . . . . . . . Overflow Damage 4187 | . . 41 . . 201 418 58 218 61 107 31 . 44 . . 145 48 . 2815 Projectiles 325 | . . 17 . . . . . . . . . . 44 . . 145 . . 119 Explosions 2829 | . . 24 . . . . . . 30 . 31 . . . . . 48 . 2696 Melee 1033 | . . . . . 201 418 58 218 31 107 . . . . . . . . . Knockbacks 20 | . . . . . . . . . . . . . . 1 . 7 12 . . Impact . | . . . . . . . . . . . . . . . . . . . . Kinetic 19 | . . . . . . . . . . . . . . 1 . 7 11 . . Secondary 1 | . . . . . . . . . . . . . . . . . 1 . . Self-Inflicted Damage 545 | . 19 11 . . . . . . 168 . . . . . 103 . 95 . 149 Shots 9 | . 1 1 . . . . . . 2 . . . . . 2 . 1 . 2 Rammed . | . . . . . . . . . . . . . . . . . . . . Targets Rammed 3 | . . . . . . . . . 1 2 . . . . . . . . . Kicked 3 | . . . . . . . . . 1 2 . . . . . . . . . Crushed . | . . . . . . . . . . . . . . . . . . . . Highest Temperature 621 | . 102 258 621 . 215 227 202 28 162 212 211 156 168 546 314 384 594 132 237 Average Temperature 80 | . 28 70 144 . 72 53 99 17 51 61 36 51 54 85 88 159 175 37 84 Received Heat Transfer 2954 | . 30 180 114 . 15 128 . . 384 338 9 . 126 129 117 18 1061 8 297 Effects 19 | . . 2 8 . . . . . . 1 . . . 3 . 1 4 . . Shutdowns 5 | . . . 3 . . . . . . . . . . 1 . . 1 . . Interference 6 | . . 2 . . . . . . . 1 . . . . . . 3 . . Matter Decay 1 | . . . 1 . . . . . . . . . . . . . . . . Short Circuit 4 | . . . 3 . . . . . . . . . . . . 1 . . . Damage (minor) 2 | . . . . . . . . . . . . . . 2 . . . . . Damage (major) 1 | . . . 1 . . . . . . . . . . . . . . . . Siege Activations . | . . . . . . . . . . . . . . . . . . . . Martial Activations . | . . . . . . . . . . . . . . . . . . . . Shielding Activations 2 | . . . . . . . . . . 2 . . . . . . . . . Total Turns 114 | . . . . . . . . . . 114 . . . . . . . . . Longest Duration 62 | . . . . . . . . . . 62 . . . . . . . . . Robots Disrupted . | . . . . . . . . . . . . . . . . . . . . Combat Hostiles . | . . . . . . . . . . . . . . . . . . . . Robots Corrupted . | . . . . . . . . . . . . . . . . . . . . Combat Hostiles . | . . . . . . . . . . . . . . . . . . . . Parts Fried 5 | . 1 . . . . . . . 3 . . . . . . . 1 . . Impact Corruptions . | . . . . . . . . . . . . . . . . . . . . Robots Melted 2 | . . . 1 . . . . . . . . . . . . 1 . . . Combat Hostiles 1 | . . . 1 . . . . . . . . . . . . . . . . Parts Melted 16 | . . 4 2 . . . . . . 2 . . 4 1 . 1 . . 2 Heat Transferred 7611 | . 150 1493 333 . . . . . . 777 87 . 1288 962 185 592 . . 1744 Parts Sabotaged 2 | . . . . . . . . . . . 2 . . . . . . . . Parts Stolen . | . . . . . . . . . . . . . . . . . . . . Parts Stripped . | . . . . . . . . . . . . . . . . . . . . Power Chain Reactions 3 | . 2 . . . . . . . . . . . . . 1 . . . . Alert | -11 -10 -10 -7 -7 -5 -5 -5 -5 -5 -4 -4 -4 -3 -3 -2 -2 -2 -1 -1 ------- Run | Yrd Mat Sub Rec Scr Fac Ext Cet Arc Hub Fac Arm Lab Res Tes Res Qua Frg Acc Com Maximum Alert Level 5 | . . . . . 1 2 1 . 5 3 1 . 1 1 3 2 5 5 5 Low Security (%) 49 | 100 100 . 100 . 97 67 53 100 8 . 82 . 34 77 6 . . . . Level 1 7 | . . . . . 2 30 46 . 6 . 17 . 65 22 28 17 1 . . Level 2 7 | . . . . . . 1 . . 8 70 . . . . 34 82 5 . . Level 3 4 | . . . . . . . . . 43 29 . . . . 31 . 5 . . Level 4 2 | . . . . . . . . . 31 . . . . . . . 4 . 4 Level 5 15 | . . . . . . . . . 1 . . . . . . . 82 100 9 High Security 13 | . . . . . . . . . . . . . . . . . . . 86 Max Security . | . . . . . . . . . . . . . . . . . . . . Peak Influence 7965 | 5 156 . 21 . 227 405 347 164 2009 986 377 . 385 352 793 669 3282 2154 7965 Initial 1968 | . . . . . . 110 189 22 . 984 219 . . 149 198 381 366 1968 1372 Average 1409 | 1 52 . . . 27 149 199 6 923 626 153 . 214 167 514 481 2254 2039 6406 Influence Increases 21467 | 10 375 185 49 . 397 837 198 237 2781 335 466 . 648 851 917 526 3933 286 8436 Destroy 0b10 Robot/C 9420 | . 220 140 20 . . 400 80 80 940 220 180 . 20 260 480 80 2220 80 4000 Destroy 0b10 Robot/NC 755 | 10 20 . 5 . 20 60 5 45 115 10 5 . 25 55 25 35 140 5 175 Destroy Leader 1164 | . 34 . . . 2 46 . . 166 40 30 . 2 56 74 20 220 10 464 Allied During Kill 2314 | . . . . . . 170 84 110 678 . 1 . . 22 . . . . 1249 Successful Hack 403 | . . . . . 36 22 . . 20 6 20 . 2 50 62 115 37 33 . Disable Machine 1095 | . 15 . . . . . . . 315 15 60 . . 75 60 45 390 . 120 Destroy Structure 3046 | . 26 . 24 . 24 64 14 2 532 44 50 . 14 78 111 81 161 58 1763 Partial Spotted 405 | . 15 . . . 15 45 . . . . 30 . 30 15 45 120 90 . . Lose Combat Pursuer 2265 | . 45 45 . . 300 30 15 . 15 . 90 . 555 240 60 30 675 . 165 Active Sensor Use 600 | . . . . . . . . . . . . . . . . . . 100 500 Influence Decreases 13079 | 10 278 282 49 . 170 725 480 294 772 1895 538 377 382 765 590 552 1304 1424 2192 Entered New Map 4923 | . . 47 . . . 117 150 35 . 1025 230 377 . 117 154 298 287 1314 772 Time Decay 5042 | 10 268 235 49 . 150 434 310 259 342 470 198 . 252 428 416 254 767 100 100 Search Patrol Dispatched 100 | . . . . . . . . . . . . . 100 . . . . . . Lost Part 940 | . 10 . . . 20 40 . . 40 100 20 . 30 30 20 . 230 . 400 Lost Ally 1474 | . . . . . . 134 20 . 240 . 90 . . 40 . . 20 10 920 Purge Threat 600 | . . . . . . . . . 150 300 . . . 150 . . . . . Squads Dispatched 101 | . 2 . . . 3 1 . . 12 8 5 . 3 10 7 2 4 2 42 Investigation 17 | . . . . . 1 1 . . . 2 . . 1 2 3 . 1 1 5 Extermination 16 | . . . . . 1 . . . 1 3 2 . 1 3 2 2 . . 1 Reinforcement 25 | . 2 . . . 1 . . . 6 2 3 . 1 4 2 . 3 1 . Assault 42 | . . . . . . . . . 5 1 . . . . . . . . 36 Garrison 1 | . . . . . . . . . . . . . . 1 . . . . . Intercept . | . . . . . . . . . . . . . . . . . . . . Searches Triggered 1 | . . . . . . . . . . . . . 1 . . . . . . Construction Impeded 5 | . . . . . . . . . 3 1 . . . 1 . . . . . Haulers Reinforced 5 | . . . . . 1 . . . . . . . . 2 1 . . 1 . Active Scanning Responses 6 | . . . . . . . . . . . . . . . . . . 1 5 Cargo Convoy Interrupts . | . . . . . . . . . . . . . . . . . . . . Stealth | -11 -10 -10 -7 -7 -5 -5 -5 -5 -5 -4 -4 -4 -3 -3 -2 -2 -2 -1 -1 --------- Run | Yrd Mat Sub Rec Scr Fac Ext Cet Arc Hub Fac Arm Lab Res Tes Res Qua Frg Acc Com Distress Signals 39 | . . . . . . . 1 . 5 . 2 . 3 2 . . 15 . 11 Communications Jammed 50 | . . . . . . . . . . . . . . . 31 18 1 . . Distress Signals 31 | . . . . . . . . . . . . . . . 12 18 1 . . Times Spotted 774 | . 18 22 1 . 24 19 5 6 60 24 21 . 50 38 30 19 218 7 212 Peak Tracking Total 24 | . 3 6 1 . 13 6 5 1 11 8 7 . 15 7 9 7 18 3 24 Tactical Retreats 62 | . 2 2 . . 6 2 1 . 1 . 4 . 9 5 3 1 18 . 8 Traps | -11 -10 -10 -7 -7 -5 -5 -5 -5 -5 -4 -4 -4 -3 -3 -2 -2 -2 -1 -1 ------- Run | Yrd Mat Sub Rec Scr Fac Ext Cet Arc Hub Fac Arm Lab Res Tes Res Qua Frg Acc Com Traps Triggered 22 | . . 1 . . 2 2 . . . . . . 2 . 2 . 8 2 3 Indirectly . | . . . . . . . . . . . . . . . . . . . . Trap Hack Attempts . | . . . . . . . . . . . . . . . . . . . . Triggered . | . . . . . . . . . . . . . . . . . . . . Disarmed . | . . . . . . . . . . . . . . . . . . . . Reprogrammed . | . . . . . . . . . . . . . . . . . . . . Reused 1 | . . 1 . . . . . . . . . . . . . . . . . Traps Extracted . | . . . . . . . . . . . . . . . . . . . . Installed 1 | . . 1 . . . . . . . . . . . . . . . . . Triggered . | . . . . . . . . . . . . . . . . . . . . Most Traps Carried 1 | . . 1 . . . . . . . . . . . . . . . . . Machines | -11 -10 -10 -7 -7 -5 -5 -5 -5 -5 -4 -4 -4 -3 -3 -2 -2 -2 -1 -1 ---------- Run | Yrd Mat Sub Rec Scr Fac Ext Cet Arc Hub Fac Arm Lab Res Tes Res Qua Frg Acc Com Machines Disabled 87 | . 1 5 . . . . . . 21 1 4 5 . 5 4 3 29 . 9 Max in Single Turn 6 | . 1 4 . . . . . . 6 1 1 1 . 1 1 1 2 . 2 Garrison Access 9 | . . . . . 1 . . . 1 1 . . 2 1 1 1 1 . . Network Hub 2 | . . . . . . . . . 2 . . . . . . . . . . Machines Repaired . | . . . . . . . . . . . . . . . . . . . . Machines Dismantled . | . . . . . . . . . . . . . . . . . . . . Machines Sabotaged . | . . . . . . . . . . . . . . . . . . . . Overloaded Fab Kills . | . . . . . . . . . . . . . . . . . . . . Hacking | -11 -10 -10 -7 -7 -5 -5 -5 -5 -5 -4 -4 -4 -3 -3 -2 -2 -2 -1 -1 --------- Run | Yrd Mat Sub Rec Scr Fac Ext Cet Arc Hub Fac Arm Lab Res Tes Res Qua Frg Acc Com Machines Accessed 87 | . . 4 . 4 9 10 . . 4 8 3 . 6 10 6 11 7 4 1 Terminals 56 | . . . . . 7 9 . . 4 5 3 . 2 6 3 8 4 4 1 Fabricators 5 | . . . . . . . . . . 1 . . . 2 2 . . . . Repair Stations . | . . . . . . . . . . . . . . . . . . . . Recycling Units 5 | . . . . . 1 1 . . . 1 . . 1 . . . 1 . . Scanalyzers 5 | . . . . . . . . . . . . . 1 1 . 2 1 . . Garrison Access 8 | . . . . . 1 . . . . 1 . . 2 1 1 1 1 . . Total Hacks 245 | . . 11 . 27 29 17 . . 11 30 10 . 8 28 20 32 14 7 1 Successful 168 | . . 11 . 27 16 13 . . 4 16 3 . 8 23 13 20 10 3 1 Failed 77 | . . . . . 13 4 . . 7 14 7 . . 5 7 12 4 4 . Catastrophic 18 | . . . . . 3 . . . 1 4 2 . . . 3 3 . 2 . Database Lockouts . | . . . . . . . . . . . . . . . . . . . . Manual 105 | . . . . . 23 14 1 . 4 11 8 . 3 8 13 11 6 3 . Terminals 167 | . . . . . 25 16 . . 11 24 10 . 3 19 15 26 10 7 1 Fabricators 13 | . . . . . . . . . . 4 . . . 5 4 . . . . Repair Stations . | . . . . . . . . . . . . . . . . . . . . Recycling Units 6 | . . . . . 2 1 . . . 1 . . 1 . . . 1 . . Scanalyzers 11 | . . . . . . . . . . . . . 2 3 . 4 2 . . Garrison Access 10 | . . . . . 2 . . . . 1 . . 2 1 1 2 1 . . Terminal Hacks 98 | . . 11 . 27 6 3 . . 4 10 . . 2 9 7 12 4 2 1 Record 37 | . . 8 . 27 . . . . . . . . . . . 1 1 . . Part Schematic 9 | . . . . . 1 . . . . 1 . . . 3 3 1 . . . Robot Analysis 3 | . . . . . 1 . . . . . . . . . . 2 . . . Prototype ID Bank 1 | . . . . . . . . . . . . . . . . 1 . . . Open Door 7 | . . 1 . . 1 3 . . . . . . . . 1 . . 1 . Branch Access Points 5 | . . . . . 1 . . . . . . . 1 . 1 1 . 1 . Machine Index 1 | . . . . . . . . . . . . . . . . 1 . . . Terminal Index 4 | . . . . . 1 . . . . 1 . . . . . 1 1 . . Fabricator Index 4 | . . . . . . . . . . . . . 1 1 1 1 . . . Recycling Unit Index 1 | . . . . . . . . . . . . . . . . 1 . . . Scanalyzer Index 1 | . . . . . . . . . . . . . . . . 1 . . . Alert Level 3 | . . . . . . . . . 1 2 . . . . . . . . . Unreport Threat 4 | . . . . . . . . . 1 2 . . . 1 . . . . . Locate Traps 2 | . . . . . . . . . . 1 . . . 1 . . . . . Recall Investigation 1 | . . . . . . . . . . . . . . 1 . . . . . Recall Extermination 3 | . . . . . . . . . . 2 . . . 1 . . . . . Hauler Manifests 5 | . . . . . 1 . . . 1 1 . . . 1 1 . . . . Zone Layout 3 | . . . . . . . . . 1 . . . . . . 1 1 . . Proto ID Catalog 2 | . . 1 . . . . . . . . . . . . . . 1 . . Disengage Seal 1 | . . . . . . . . . . . . . . . . . . . 1 Release Object 1 | . . 1 . . . . . . . . . . . . . . . . . Fabricator Hacks 12 | . . . . . . . . . . 3 . . . 5 4 . . . . Load Schematic 5 | . . . . . . . . . . 1 . . . 2 2 . . . . Build 7 | . . . . . . . . . . 2 . . . 3 2 . . . . Repair Station Hacks . | . . . . . . . . . . . . . . . . . . . . Recycling Unit Hacks . | . . . . . . . . . . . . . . . . . . . . Scanalyzer 11 | . . . . . . . . . . . . . 2 3 . 4 2 . . Insert Component 4 | . . . . . . . . . . . . . . 1 . 2 1 . . Analyze 2 | . . . . . . . . . . . . . . . . 1 1 . . Retrieve Study 5 | . . . . . . . . . . . . . 2 2 . 1 . . . Garrison Access Hacks 8 | . . . . . 1 . . . . 1 . . 2 1 1 1 1 . . Seal Access 8 | . . . . . 1 . . . . 1 . . 2 1 1 1 1 . . Unauthorized Hacks 39 | . . . . . 9 10 . . . 2 3 . 2 5 1 3 3 1 . Terminals 34 | . . . . . 8 9 . . . 1 3 . 1 5 1 3 2 1 . Track 8 | . . . . . . . . . . . . . . 3 1 3 1 . . Assimilate 8 | . . . . . 1 1 . . . . 2 . . 2 . . 1 1 . Botnet 7 | . . . . . 2 2 . . . 1 1 . 1 . . . . . . Skim 11 | . . . . . 5 6 . . . . . . . . . . . . . Fabricators . | . . . . . . . . . . . . . . . . . . . . Repair Stations . | . . . . . . . . . . . . . . . . . . . . Recycling Units 5 | . . . . . 1 1 . . . 1 . . 1 . . . 1 . . Fedlink 4 | . . . . . 1 . . . . 1 . . 1 . . . 1 . . Scrapoids 1 | . . . . . . 1 . . . . . . . . . . . . . Scanalyzers . | . . . . . . . . . . . . . . . . . . . . Garrison Access . | . . . . . . . . . . . . . . . . . . . . Data Cores Recovered 3 | . . . . . . 1 . . . 1 1 . . . . . . . . Used . | . . . . . . . . . . . . . . . . . . . . Hacking Detections 42 | . . . . . 4 3 . . 4 6 3 . . 6 4 6 3 3 . Full Trace Events 6 | . . . . . . . . . . 1 . . . 2 3 . . . . Feedback Events . | . . . . . . . . . . . . . . . . . . . . Feedback Blocked . | . . . . . . . . . . . . . . . . . . . . Robot Schematics Acquired . | . . . . . . . . . . . . . . . . . . . . Robots Built . | . . . . . . . . . . . . . . . . . . . . Authchips . | . . . . . . . . . . . . . . . . . . . . Time . | . . . . . . . . . . . . . . . . . . . . Total Robot Build Rating . | . . . . . . . . . . . . . . . . . . . . Part Schematics Acquired 13 | . . . . . 1 . . . . 1 . . . 3 3 2 3 . . Parts Built 9 | . . . . . . . . . . 2 . . . 4 3 . . . . Authchips . | . . . . . . . . . . . . . . . . . . . . Time 622 | . . . . . . . . . . 326 . . . 187 109 . . . . Total Part Build Rating 65 | . . . . . . . . . . 16 . . . 32 17 . . . . Part Studies Acquired 5 | . . . . . . . . . . . . . 2 2 . 1 . . . Parts Repaired . | . . . . . . . . . . . . . . . . . . . . Time . | . . . . . . . . . . . . . . . . . . . . Parts Recycled . | . . . . . . . . . . . . . . . . . . . . Recycled Matter . | . . . . . . . . . . . . . . . . . . . . Retrieved Matter . | . . . . . . . . . . . . . . . . . . . . Retrieved Components . | . . . . . . . . . . . . . . . . . . . . Parts Scanalyzed 2 | . . . . . . . . . . . . . . . . 1 1 . . Part Schematics Acquired 2 | . . . . . . . . . . . . . . . . 1 1 . . Parts Damaged . | . . . . . . . . . . . . . . . . . . . . Bothacking | -11 -10 -10 -7 -7 -5 -5 -5 -5 -5 -4 -4 -4 -3 -3 -2 -2 -2 -1 -1 ------------ Run | Yrd Mat Sub Rec Scr Fac Ext Cet Arc Hub Fac Arm Lab Res Tes Res Qua Frg Acc Com Used RIF Installer . | . . . . . . . . . . . . . . . . . . . . Robots Hacked . | . . . . . . . . . . . . . . . . . . . . Non-combat . | . . . . . . . . . . . . . . . . . . . . Combat . | . . . . . . . . . . . . . . . . . . . . Robot Hacks Applied . | . . . . . . . . . . . . . . . . . . . . Relay Couplers Released 2 | . . . . . . . . . 2 . . . . . . . . . . Machine Destruction 2 | . . . . . . . . . 2 . . . . . . . . . . Fabnet Peak Effective % . | . . . . . . . . . . . . . . . . . . . . Robots Rewired 21 | . . . . . . 13 . . . . 7 . . 1 . . . . . Allies Hacked 1 | . . . . . . . . . . . 1 . . . . . . . . Hacks Repelled . | . . . . . . . . . . . . . . . . . . . . Allies | -11 -10 -10 -7 -7 -5 -5 -5 -5 -5 -4 -4 -4 -3 -3 -2 -2 -2 -1 -1 -------- Run | Yrd Mat Sub Rec Scr Fac Ext Cet Arc Hub Fac Arm Lab Res Tes Res Qua Frg Acc Com Total Allies 81 | . . . . . 1 23 6 . . . 8 . . 3 . . 1 1 38 Largest Group 16 | . . . . . 1 12 15 15 15 . 5 . . 2 . . 1 1 16 Highest-Rated Group 830 | . . . . . 10 497 830 830 830 . 282 . . 148 . . 132 45 590 Highest-Rated Ally 234 | . . . . . 10 159 159 109 109 . 64 . . 122 . . 132 45 234 Initial UFD Resources 74 | . . . . . 38 48 45 45 45 48 58 58 61 71 74 74 74 . . Total Orders 70 | . . . . . 3 17 9 5 4 . . . . 5 . . 1 1 25 STAY 29 | . . . . . 2 9 7 3 2 . . . . 4 . . 1 1 . FOLLOW 16 | . . . . . 1 8 2 2 2 . . . . 1 . . . . . RETURN 25 | . . . . . . . . . . . . . . . . . . . 25 Ally Attacks 688 | . . . . . . 130 21 31 188 . 12 . . 6 . . 5 . 295 Total Damage 24344 | . . . . . . 3612 556 915 6240 . 311 . . 277 . . 246 . 12187 Kills 109 | . . . . . . 20 4 4 37 . 3 . . 1 . . 2 . 38 Allies Corrupted 3 | . . . . . . . . . . . . . . 1 . . . . 2 Allies Melted 1 | . . . . . . . . . . . . . . . . . 1 . . Intel | -11 -10 -10 -7 -7 -5 -5 -5 -5 -5 -4 -4 -4 -3 -3 -2 -2 -2 -1 -1 ------- Run | Yrd Mat Sub Rec Scr Fac Ext Cet Arc Hub Fac Arm Lab Res Tes Res Qua Frg Acc Com Active Infowar (turns) 34170 | 20 817 125 . 7093 462 1779 680 8358 795 1184 415 363 613 1058 1002 549 4339 205 4313 Optics 26115 | . . . . . 462 1779 680 8358 795 1184 415 363 613 1058 1002 549 4339 205 4313 Sensors 3459 | . . . . 3373 . 86 . . . . . . . . . . . . . A.S.S. 3287 | . . . . . . . . . . . . . . . . . . 201 3086 IFF 2101 | . . . . 2101 . . . . . . . . . . . . . . . Terrain 1 | . . . . . . . . . . . . . 1 . . . . . . Structural 1342 | . . . . . 419 256 . . . 143 194 196 134 . . . . . . Seismic 2702 | 20 817 125 . . 407 1022 . . . 297 4 10 . . . . . . . Decoding 284 | . . . . 284 . . . . . . . . . . . . . . . Cloaking 1695 | . . . . . . . . . . . . . . . . . 1088 175 432 Spoofing 358 | . . . . 358 . . . . . . . . . . . . . . . Jamming 1449 | . . . . . . . . . . . . . . 14 791 549 95 . . ECM 977 | . . . . 977 . . . . . . . . . . . . . . . Robot Analysis Total 3 | . . . . . 1 . . . . . . . . . . 2 . . . Derelict Logs Recovered 4 | . . . . 4 . . . . . . . . . . . . . . . Drone Launches 39 | . . . . . . . . . . . . . . . . . . . 39 Drone Recoveries 27 | . . . . . . . . . . . . . . . . . . . 27 Exploration | -11 -10 -10 -7 -7 -5 -5 -5 -5 -5 -4 -4 -4 -3 -3 -2 -2 -2 -1 -1 ------------- Run | Yrd Mat Sub Rec Scr Fac Ext Cet Arc Hub Fac Arm Lab Res Tes Res Qua Frg Acc Com Turns Passed 49058 | 95 817 4789 1004 16226 474 1779 680 8358 795 1184 415 363 613 1058 1002 549 4339 205 4313 Spaces Moved 32920 | 60 505 2824 593 5975 1137 1746 518 1255 480 665 777 198 1374 1970 979 834 5457 221 5352 Core 4735 | 5 . . . 3643 . . . 1005 . . 82 . . . . . . . . Treads 1567 | . . 1404 85 18 . 60 . . . . . . . . . . . . . Legs 1147 | . . . . 1 . . . . 441 665 40 . . . . . . . . Wheels 4924 | 55 505 1420 508 1020 . 609 518 250 39 . . . . . . . . . . Hover 9131 | . . . . 228 . . . . . . . . . . . . 3330 221 5352 Flight 11416 | . . . . 1065 1137 1077 . . . . 655 198 1374 1970 979 834 2127 . . Fastest Speed 16 | 50 90 90 105 32 24 24 80 80 90 120 21 21 21 17 25 25 16 36 33 Average Speed 117 | 87 100 139 125 268 27 55 90 657 118 128 36 21 24 24 27 25 32 36 47 Slowest Speed 800 | 100 105 250 250 750 96 240 100 800 190 190 190 21 28 100 100 106 106 40 104 Overloaded Moves 16 | . . . . . 9 7 . . . . . . . . . . . . . Propulsion Burnouts . | . . . . . . . . . . . . . . . . . . . . Robots Hopped 98 | . . . . 2 3 6 . . . . 4 . 13 24 15 18 10 . 3 Potential Cave-ins 3 | . . . . . . . . . . . . . . . . . 3 . . Cave-ins Triggered . | . . . . . . . . . . . . . . . . . . . . Teleports 1 | . . . . . . . . . . . . . . . . . 1 . . Exploration Rate (%) 59 | 3 63 91 98 88 21 98 58 97 55 17 64 95 23 81 22 73 77 7 52 Regions Visited 19 Branch Regions 13 Pre-discovered Areas 9 | . . . . 5 . 3 . . . 1 . . . . . . . . . Known Exits Taken 6 | . . . . . 1 . . . 1 . . 1 1 . 1 . . 1 . Unknown Exits Taken 13 | 1 1 1 1 1 . 1 1 1 . 1 1 . . 1 . 1 1 . . Scrap Searched 23 | . . 14 . 9 . . . . . . . . . . . . . . . Spaces Dug 112 | . . . 14 . 11 1 . . 1 9 5 . 3 10 12 12 13 14 7 Terrain Destroyed 2241 | . 28 60 37 . 14 8 8 1 346 22 35 . 7 37 41 30 84 23 1460 Melee 19 | . . . . . 10 1 . . . 8 . . . . . . . . . Projectile 329 | . . 4 37 . 4 7 8 1 29 14 8 . 7 25 27 21 55 23 59 AOE 1848 | . 28 56 . . . . . . 317 . 27 . . . 6 . 13 . 1401 Terrain Rammed . | . . . . . . . . . . . . . . . . . . . . Walls Destroyed . | . . . . . . . . . . . . . . . . . . . . Machines Disabled . | . . . . . . . . . . . . . . . . . . . . Actions | -11 -10 -10 -7 -7 -5 -5 -5 -5 -5 -4 -4 -4 -3 -3 -2 -2 -2 -1 -1 --------- Run | Yrd Mat Sub Rec Scr Fac Ext Cet Arc Hub Fac Arm Lab Res Tes Res Qua Frg Acc Com Total 41113 | 87 739 3564 801 6148 1273 2509 717 1337 619 875 875 483 1574 2418 1594 1096 7354 300 6750 Wait 5290 | 4 165 597 156 144 67 626 106 60 35 89 14 206 97 315 529 184 1035 27 834 Move 32721 | 59 504 2823 592 5971 1130 1733 517 1254 479 664 769 197 1349 1927 950 802 5437 220 5344 Hop 79 | . . . . 1 3 6 . . . . 3 . 11 18 13 13 8 . 3 Pick Up 249 | 5 15 21 1 11 5 10 19 1 2 5 3 8 . 16 3 8 87 3 26 Fast Attach 292 | 7 . 5 . 6 6 9 12 2 7 9 16 8 23 21 7 8 101 7 38 Attach 153 | . 1 3 2 1 8 3 3 1 3 3 2 7 2 9 3 4 34 5 59 Detach 82 | . . . 1 . 4 3 3 1 . . . 2 3 5 1 3 26 4 26 Swap 206 | 1 9 26 2 1 . 2 4 1 6 9 7 1 . 9 . 6 59 9 54 Drop 375 | . 7 18 . 13 3 12 33 2 8 4 12 15 17 29 5 14 141 3 39 Fire 1302 | 11 38 58 47 . 4 17 10 2 58 47 22 39 42 68 83 54 395 22 285 Melee 131 | . . . . . 19 23 10 13 20 43 . . . . . . 3 . . Ram . | . . . . . . . . . . . . . . . . . . . . Kick 3 | . . . . . . . . . 1 2 . . . . . . . . . Crush . | . . . . . . . . . . . . . . . . . . . . Escape Stasis 147 | . . . . . 24 23 . . . . . . 30 . . . 28 . 42 Rewire 70 | . . . . . . 42 . . . . 27 . . 1 . . . . . Trap 1 | . . 1 . . . . . . . . . . . . . . . . . Miscellaneous 12 | . . 12 . . . . . . . . . . . . . . . . . Route ------- -11/Scrapyard -10/Materials (discovered 4 exits: [*Mat x2] / [*Min] / *Sub) -10/Subcaves (discovered 3 exits: [*Mat x2] / [*Rec]) -7/Recycling (discovered 2 exits: *Fac / *Scr) -7/Scraptown (discovered 2 exits: *Fac x2) -5/Factory (discovered 6 exits: Fac x2 / *Upp x2 / *Ext x2) -5/Extension (discovered 3 exits: *Fac x2 / *Cet) -5/Cetus -5/Archives (discovered 3 exits: *Fac / *Hub x2) -5/Hub_04(d) -4/Factory (discovered 4 exits: Res x2 / Upp / *Arm) -4/Armory -4/Lab -3/Research (discovered 2 exits: *Tes x2) -3/Testing -2/Research (discovered 2 exits: *Qua x2) -2/Quarantine (discovered 3 exits: *Acc / [*Sec] / *Frg) -2/Protoforge -1/Access -1/Command (discovered 2 exits: [*Sur x2]) To Fleet Rendezvous History --------- Turn | Location | Event 16 | -11/Scrapyard | Discovered new exit (range 15) 96 | -11/Scrapyard | Entered Materials 112 | -10/Materials | Discovered new exit (range 15) 315 | -10/Materials | Build established: Mutant 417 | -10/Materials | Discovered new exit (range 15) 530 | -10/Materials | Discovered new exit (range 10) 857 | -10/Materials | Discovered new exit (range 3) 913 | -10/Materials | Entered Subcaves 1191 | -10/Subcaves | Shifting Twisted Machinery released Sub. Laser 1383 | -10/Subcaves | Build established: Subdweller-Mutant 1407 | -10/Subcaves | Shifting Twisted Machinery released Mak. Power Source 1425 | -10/Subcaves | Shifting Twisted Machinery released Scrap Shield 2157 | -10/Subcaves | Shifting Twisted Machinery released Battle Cannon 2377 | -10/Subcaves | Discovered new exit (range 7) 2494 | -10/Subcaves | Discovered new exit (range 14) 2620 | -10/Subcaves | Disturbed a concealed Subdweller 3644 | -10/Subcaves | Discovered new exit (range 12) 3849 | -10/Subcaves | Visited Clippyterm 3853 | -10/Subcaves | Learned Research machine intel 3853 | -10/Subcaves | Learned Factory stockpile data 3893 | -10/Subcaves | Shifting Twisted Machinery released Battle Rifle 4664 | -10/Subcaves | A swath of the cavern ceiling suddenly collapsed 4742 | -10/Subcaves | Core integrity fell below 50% 4899 | -10/Subcaves | Visited 4L-MR0's lab 5370 | -10/Subcaves | Build established: Mutant 5445 | -10/Subcaves | Found Prototype Device 5453 | -10/Subcaves | Found Rainbow Chip 5702 | -10/Subcaves | Entered Recycling 6295 | -7/Recycling | Discovered new exit (range 5) 6680 | -7/Recycling | Scanned before Scraplab entrance 6694 | -7/Recycling | Entered Scraplab 6703 | -7/Recycling | Discovered new exit (range 3) 6706 | -7/Recycling | Entered Scraptown 6891 | -7/Scraptown | Discovered new exit (range 11) 6939 | -7/Scraptown | Scanned Subdweller tech in exchange for log data 6941 | -7/Scraptown | Learned Factory emergency access door positions 6942 | -7/Scraptown | Learned 12 Factory zone layouts 6943 | -7/Scraptown | Learned location of 2 exits from Proximity Caves 6944 | -7/Scraptown | Learned location of 2 exits from Lower Caves 6978 | -7/Scraptown | Visited Bundlers 7045 | -7/Scraptown | Visited SPCMW 7058 | -7/Scraptown | Visited Red Mages 7094 | -7/Scraptown | Visited Junk Repository 7129 | -7/Scraptown | Visited UFD Registry 7129 | -7/Scraptown | Registered with UFD as "Metalchip" 7144 | -7/Scraptown | Visited Cyclists 7152 | -7/Scraptown | Entered Cyclist Reading Room 7185 | -7/Scraptown | Visited Symbiants 7260 | -7/Scraptown | Visited Cartography Club 7318 | -7/Scraptown | Found Deep Structural Scanner 7353 | -7/Scraptown | Learned location of Warlord (-4) 7353 | -7/Scraptown | Learned location of Archives (-5) 7353 | -7/Scraptown | Learned location of Quarantine (-2) 7353 | -7/Scraptown | Learned 8 Materials zone layouts 7353 | -7/Scraptown | Learned 12 Materials zone layouts 7353 | -7/Scraptown | Learned 20 Factory zone layouts 7353 | -7/Scraptown | Learned 16 Research zone layouts 7353 | -7/Scraptown | Learned 20 Lower Caves zone layouts 7353 | -7/Scraptown | Learned 12 Upper Caves zone layouts 7353 | -7/Scraptown | Learned 16 Upper Caves zone layouts 7353 | -7/Scraptown | Learned 4 Armory zone layouts 7353 | -7/Scraptown | Learned location of 2 exits from Upper Caves 7353 | -7/Scraptown | Learned location of 3 exits from Upper Caves 7353 | -7/Scraptown | Learned location of 1 exit from Proximity Caves 7385 | -7/Scraptown | Visited Observation Area 7416 | -7/Scraptown | Visited Scrapoid Pod Storage 7431 | -7/Scraptown | Visited LU-1G1's Boring Crew 7451 | -7/Scraptown | Visited Scrap Suit Storage 7465 | -7/Scraptown | Visited Infowarlord's Domain 7499 | -7/Scraptown | Delivered Scrap Shield to a Scientist 7525 | -7/Scraptown | Visited Botcube Research 7540 | -7/Scraptown | Visited DA-N13 Charitable Foundation 7546 | -7/Scraptown | Found DCF Scrap (28 items) 7571 | -7/Scraptown | Visited Derelict Rescue Squad 7772 | -7/Scraptown | Identified Sfc. Transmogrifier 22077 | -7/Scraptown | Found Spectral Analyzer 22135 | -7/Scraptown | Found Botcube 22188 | -7/Scraptown | Found Scrapoid Pod 22859 | -7/Scraptown | Met Optimus 22859 | -7/Scraptown | Accepted into 0bPrime 22924 | -7/Scraptown | Discovered new exit (range 5) 22932 | -7/Scraptown | Entered Factory 22932 | -5/Factory | Evolved 10 slots: Power x1, Propulsion x3, Utility x6 22933 | -5/Factory | Identified exit to Upper Caves 22934 | -5/Factory | Identified exit to Extension 22934 | -5/Factory | Identified exit to Factory 23044 | -5/Factory | Loaded intel: 8 recycling unit locations 23235 | -5/Factory | Build established: Hacker-Sprinter 23406 | -5/Factory | Entered Extension 23648 | -5/Extension | Rescued a captive Derelict 23649 | -5/Extension | Rescued a captive Derelict 23777 | -5/Extension | Spotted B-75 Beast 23818 | -5/Extension | Rescued a captive Derelict 23891 | -5/Extension | Scrapoid reinforcements arrived 24144 | -5/Extension | Spotted B-75 Beast 24146 | -5/Extension | Allies destroyed B-75 Beast 24184 | -5/Extension | Build established: Commander-Sprinter 24208 | -5/Extension | Allies destroyed B-75 Beast 24215 | -5/Extension | Rescued A7 24247 | -5/Extension | Botcube activated 24252 | -5/Extension | Lost 7 allies 24271 | -5/Extension | Botcube completed mutation into treaded form, armed with 2 cannons 24322 | -5/Extension | Attached CPS modules to A7 24332 | -5/Extension | Attached CPS modules to Mutated Botcube 24447 | -5/Extension | Found Scrap Suit 24719 | -5/Extension | Learned location of 1 exit from Upper Caves 24809 | -5/Extension | Learned Research interactive machine intel 24825 | -5/Extension | Discovered exit to Factory (range 10) 24826 | -5/Extension | Discovered new exit (range 6) 24839 | -5/Extension | Learned location of Armory (-4) 24867 | -5/Extension | Learned Factory trap positions 24868 | -5/Extension | Learned location of Upper Caves (-4) 24880 | -5/Extension | Learned 2 Upper Caves zone layouts 25002 | -5/Extension | Build established: Commander-Scrapper 25185 | -5/Extension | Entered Cetus 25185 | -5/Cetus | Accompanied by 12 allies (A7) 25190 | -5/Cetus | Acquired a Cetus Manufacturing Module code from A7 25195 | -5/Cetus | Spotted Cetus Guard 25195 | -5/Cetus | Spotted Cetus Guard 25197 | -5/Cetus | Spotted Cetus Guard 25202 | -5/Cetus | Spotted Cetus Guard 25213 | -5/Cetus | Allies destroyed Cetus Guard 25215 | -5/Cetus | Destroyed Cetus Guard 25215 | -5/Cetus | Allies destroyed Cetus Guard 25226 | -5/Cetus | Allies destroyed Cetus Guard 25270 | -5/Cetus | Murdered A7 25273 | -5/Cetus | Extracted ID and sensor layout for unrecognized location from A7's data core 25280 | -5/Cetus | Found Prototype Protection 25280 | -5/Cetus | Identified Med. Regenerative Plating 25412 | -5/Cetus | Murdered Mutated Botcube 25412 | -5/Cetus | Destroyed Mutated Botcube 25415 | -5/Cetus | Found Botcube 25526 | -5/Cetus | Build established: Commander-Mutant 25576 | -5/Cetus | Botcube activated 25656 | -5/Cetus | Started Cetus Manufacturing Module 25664 | -5/Cetus | Discovered new exit (range 24) 25681 | -5/Cetus | Manufactured an Enhanced Grunt 25706 | -5/Cetus | Manufactured an Enhanced Grunt 25731 | -5/Cetus | Manufactured an Enhanced Grunt 25756 | -5/Cetus | Manufactured an Enhanced Grunt 25781 | -5/Cetus | Manufactured an Enhanced Grunt 25827 | -5/Cetus | Build established: Commander-Scrapper 25865 | -5/Cetus | Entered Archives 25865 | -5/Archives | Accompanied by 15 allies 25919 | -5/Archives | Discovered new exit (range 23) 25926 | -5/Archives | Discovered new exit (range 19) 25927 | -5/Archives | Discovered exit to Factory (range 22) 34223 | -5/Archives | Entered Hub_04(d) 34223 | -5/Hub_04(d) | Accompanied by 15 allies 34382 | -5/Hub_04(d) | Spotted B-75 Beast 34401 | -5/Hub_04(d) | Allies destroyed B-75 Beast 34461 | -5/Hub_04(d) | Lost 10 allies 34523 | -5/Hub_04(d) | First assault squad dispatched 34698 | -5/Hub_04(d) | Build established: Scavenger-Mutant 34779 | -5/Hub_04(d) | Discovered exit to Factory (range 3) 34887 | -5/Hub_04(d) | Core integrity fell below 50% 34983 | -5/Hub_04(d) | Found Botcube 34993 | -5/Hub_04(d) | System corruption reached 10% 35009 | -5/Hub_04(d) | Network Hub disabled 35016 | -5/Hub_04(d) | Network Hub disabled 35018 | -5/Hub_04(d) | Entered Factory 35018 | -4/Factory | Evolved 2 slots: Propulsion x1, Utility x1 35019 | -4/Factory | Identified exit to Research 35019 | -4/Factory | Identified exit to Upper Caves 35020 | -4/Factory | Loaded intel: 105 trap records 35103 | -4/Factory | Loaded intel: 7 recycling unit locations 35103 | -4/Factory | Learned location of Protoforge (-2) 35636 | -4/Factory | Fabricated Hvy. Shield Leg (x1) 35768 | -4/Factory | First assault squad dispatched 35831 | -4/Factory | Fabricated Diametric Drive? 35883 | -4/Factory | Lost 3 parts (1n2w) 36180 | -4/Factory | Discovered new exit (range 14) 36183 | -4/Factory | System corruption reached 10% 36202 | -4/Factory | Entered Armory 36203 | -4/Armory | Met VL-GR5, who suggested a friendly competition 36462 | -4/Armory | Lost 5 allies 36566 | -4/Armory | Attached Rainbow Chip, gained temporary slots: Power, Propulsion, Utility, Weapon 36608 | -4/Armory | Discovered new exit (range 12) 36617 | -4/Armory | Entered Lab 36617 | -4/Lab | Discovered exit to Research (range 11) 36715 | -4/Lab | Build established: Hacker-Sprinter 36798 | -4/Lab | Hidden lab's door opened automatically 36798 | -4/Lab | Sensor layout match revealed 36799 | -4/Lab | Gained access to the hidden lab's interior 36805 | -4/Lab | Found Prototype Energy Gun 36805 | -4/Lab | Identified Tachyon Dispersion Ray 36811 | -4/Lab | Found Prototype Energy Cannon 36811 | -4/Lab | Identified Warp Cannon 36876 | -4/Lab | Found Prototype Protection 36878 | -4/Lab | Found Prototype Hackware 36904 | -4/Lab | Found Alien Artifact 36909 | -4/Lab | Found Alien Artifact 36909 | -4/Lab | Identified Integrated Reactor 36909 | -4/Lab | Installed Integrated Reactor, increased core energy generation (+10) 36915 | -4/Lab | Identified Core Expander 36915 | -4/Lab | Installed Core Expander, added new Propulsion slot 36916 | -4/Lab | Identified Deep Network Scanner 36944 | -4/Lab | Found Alien Artifact 36950 | -4/Lab | Identified Hvy. Regenerative Plating 36952 | -4/Lab | Identified Core Reset Matrix 36952 | -4/Lab | Used Core Reset Matrix 36956 | -4/Lab | Sensed 1 artifact in vicinity 36980 | -4/Lab | Entered Research 36980 | -3/Research | Evolved 2 slots: Utility x2 37058 | -3/Research | Discovered new exit (range 7) 37178 | -3/Research | Lost 4 parts (2p1n1u) 37323 | -3/Research | Spotted B-86 Titan 37327 | -3/Research | Identified exit to Testing 37480 | -3/Research | Search patrols dispatched 37515 | -3/Research | Found Unknown Device 37515 | -3/Research | Identified Quantum Capacitor 37579 | -3/Research | Loaded intel: 5 recycling unit locations 37593 | -3/Research | Entered Testing 37704 | -3/Testing | Found Prototype Ballistic Gun 37704 | -3/Testing | Identified Hyp. Multirail 37736 | -3/Testing | Fabricated Thermal Barrier (x1) 37777 | -3/Testing | Found Prototype Device 37828 | -3/Testing | Identified Exp. Thermal Shield 37855 | -3/Testing | Garrison activated, responded to threat 37861 | -3/Testing | Fabricated Exp. Q-thruster? 37906 | -3/Testing | Build established: Wizard-Sprinter 37953 | -3/Testing | Found Spectral Analyzer 37976 | -3/Testing | Watched by a mysterious "MATRIX" hacker 37980 | -3/Testing | Found Prototype Device 38004 | -3/Testing | Rewired PL-KD1G20YE9M 38057 | -3/Testing | Identified Adv. Kinecellerator 38081 | -3/Testing | Found Prototype Ballistic Cannon 38081 | -3/Testing | Identified Perforator 38184 | -3/Testing | Spotted Striker 38184 | -3/Testing | Spotted Striker 38259 | -3/Testing | Found Prototype Protection 38259 | -3/Testing | Identified Centrium Heavy Armor Plating 38436 | -3/Testing | Fabricated Adv. Transmission Jammer? 38619 | -3/Testing | Discovered new exit (range 8) 38651 | -3/Testing | Entered Research 38651 | -2/Research | Evolved 2 slots: Utility x2 38689 | -2/Research | Identified exit to Quarantine 38763 | -2/Research | Fabricated Exp. Cooling System? 38973 | -2/Research | Fabricated Jamming Amplifier (x2) 39040 | -2/Research | Destroyed 9 combat bots 39118 | -2/Research | Found Prototype Processor 39124 | -2/Research | Found Prototype Device 39267 | -2/Research | Spotted B-90 Cyclops 39544 | -2/Research | Build established: Hacker-Sprinter 39653 | -2/Research | Entered Quarantine 39654 | -2/Quarantine | Detected hypermatrix surge 39654 | -2/Quarantine | Sensed 16 artifacts in vicinity 39799 | -2/Quarantine | Identified Exp. Terrain Scan Processor 39799 | -2/Quarantine | Identified Exp. Actuator Array 39842 | -2/Quarantine | Found Core Cannon 39883 | -2/Quarantine | Discovered new exit (range 8) 39892 | -2/Quarantine | Found Subatomic Replicator 40156 | -2/Quarantine | Used Subatomic Replicator to create Supercharged TR 40161 | -2/Quarantine | Found Hpw. Transdimensional Reconstructor 40168 | -2/Quarantine | Found Dimensional Node Initializer 40184 | -2/Quarantine | Spotted Fortress 40201 | -2/Quarantine | Discovered new exit (range 5) 40201 | -2/Quarantine | Discovered new exit (range 6) 40202 | -2/Quarantine | Entered Protoforge 40203 | -2/Protoforge | Sensed 2 artifacts in vicinity 40208 | -2/Protoforge | Spotted Hotshot 40265 | -2/Protoforge | Spotted Hotshot 40265 | -2/Protoforge | Spotted Hotshot 40271 | -2/Protoforge | Destroyed Hotshot 40277 | -2/Protoforge | Spotted Hotshot 40277 | -2/Protoforge | Spotted Hotshot 40277 | -2/Protoforge | Destroyed Hotshot 40278 | -2/Protoforge | Spotted Hotshot 40280 | -2/Protoforge | Destroyed Hotshot 40280 | -2/Protoforge | Destroyed Hotshot 40280 | -2/Protoforge | Destroyed Hotshot 40299 | -2/Protoforge | Destroyed Hotshot 40338 | -2/Protoforge | Spotted Hotshot 40338 | -2/Protoforge | Spotted Hotshot 40338 | -2/Protoforge | Spotted Hotshot 40338 | -2/Protoforge | Spotted Hotshot 40338 | -2/Protoforge | Spotted Hotshot 40338 | -2/Protoforge | Spotted Hotshot 40338 | -2/Protoforge | Superfortress began startup sequence 40383 | -2/Protoforge | Spotted Overlord 40386 | -2/Protoforge | Spotted AP7-3 40386 | -2/Protoforge | Spotted AP7-3 40399 | -2/Protoforge | Spotted Decapitator 40399 | -2/Protoforge | Spotted Decapitator 40399 | -2/Protoforge | Spotted EXE-6 40399 | -2/Protoforge | Spotted EXE-6 40410 | -2/Protoforge | Spotted EXE-6 40411 | -2/Protoforge | Spotted EXE-6 40416 | -2/Protoforge | UFD initiated attack on Protoforge (Readiness: Adequate) 40416 | -2/Protoforge | Loaded intel: 3 recycling unit locations 40453 | -2/Protoforge | Warped through subspace 40455 | -2/Protoforge | Core integrity fell below 50% 40455 | -2/Protoforge | Spotted Executioner 40467 | -2/Protoforge | Optimus greeted in Protoforge 40487 | -2/Protoforge | Found Prototype Processor 40487 | -2/Protoforge | Identified Exp. Core Analyzer 40489 | -2/Protoforge | Found Prototype Device 40489 | -2/Protoforge | Identified Exp. Kinecellerator 40492 | -2/Protoforge | Found Exp. Core Analyzer 40493 | -2/Protoforge | Lost 8 parts (2n6u) 40501 | -2/Protoforge | Found Prototype Ballistic Gun 40501 | -2/Protoforge | Identified Cep. XC Strikerail 40512 | -2/Protoforge | Found Prototype Processor 40512 | -2/Protoforge | Identified Exp. Target Analyzer 40516 | -2/Protoforge | Found Exp. Target Analyzer 40533 | -2/Protoforge | Found Cep. XC Strikerail 40540 | -2/Protoforge | Destroyed Hotshot 40543 | -2/Protoforge | Destroyed Hotshot 40546 | -2/Protoforge | Destroyed Hotshot 40549 | -2/Protoforge | Destroyed Hotshot 40552 | -2/Protoforge | Destroyed Hotshot 40552 | -2/Protoforge | Destroyed Hotshot 40615 | -2/Protoforge | Destroyed 16 combat bots 40619 | -2/Protoforge | Found Prototype Processor 40619 | -2/Protoforge | Identified Exp. Targeting Computer 40622 | -2/Protoforge | Found Exp. Kinecellerator 40624 | -2/Protoforge | Found Exp. Core Analyzer 40626 | -2/Protoforge | UFD reported confirmed Drillbomb installation 40657 | -2/Protoforge | Forge Plexus network access discovered 40664 | -2/Protoforge | Spotted Striker 40664 | -2/Protoforge | Spotted Striker 40666 | -2/Protoforge | Destroyed Striker 40672 | -2/Protoforge | Destroyed Striker 40673 | -2/Protoforge | Spotted Decapitator 40675 | -2/Protoforge | Spotted Decapitator 40675 | -2/Protoforge | Spotted Decapitator 40705 | -2/Protoforge | Spotted Immortal 40707 | -2/Protoforge | Spotted Immortal 40708 | -2/Protoforge | Lost 4 allies 40708 | -2/Protoforge | Spotted Immortal 40760 | -2/Protoforge | Destroyed Immortal 40788 | -2/Protoforge | Spotted Executioner 40819 | -2/Protoforge | Destroyed 8 combat bots 40831 | -2/Protoforge | Destroyed Executioner 40875 | -2/Protoforge | Found Cep. Core Shell 40884 | -2/Protoforge | Found Cep. Core Shell 40892 | -2/Protoforge | Spotted Striker 40893 | -2/Protoforge | Spotted Executioner 40895 | -2/Protoforge | Destroyed 02F04-K 40895 | -2/Protoforge | Destroyed Striker 40900 | -2/Protoforge | Spotted Executioner 40904 | -2/Protoforge | Destroyed Executioner 40905 | -2/Protoforge | Build established: Scavenger-Sprinter 40907 | -2/Protoforge | Destroyed Executioner 40927 | -2/Protoforge | Spotted Executioner 40930 | -2/Protoforge | Spotted Executioner 40938 | -2/Protoforge | Destroyed Executioner 40941 | -2/Protoforge | Destroyed Executioner 40942 | -2/Protoforge | System corruption reached 10% 40972 | -2/Protoforge | Lost 8 allies 40973 | -2/Protoforge | Found Adv. Kinecellerator 40979 | -2/Protoforge | Spotted Immortal 40979 | -2/Protoforge | Spotted Immortal 40983 | -2/Protoforge | Destroyed 16 combat bots 41000 | -2/Protoforge | Destroyed Immortal 41014 | -2/Protoforge | Spotted Striker 41014 | -2/Protoforge | Spotted Striker 41014 | -2/Protoforge | Spotted Striker 41017 | -2/Protoforge | Spotted Executioner 41025 | -2/Protoforge | Destroyed Striker 41031 | -2/Protoforge | Destroyed Striker 41062 | -2/Protoforge | Spotted Hotshot 41063 | -2/Protoforge | Lost 6 allies 41068 | -2/Protoforge | Spotted Hotshot 41068 | -2/Protoforge | Destroyed Hotshot 41076 | -2/Protoforge | Spotted Hotshot 41076 | -2/Protoforge | Spotted Hotshot 41092 | -2/Protoforge | Found Prototype Device 41092 | -2/Protoforge | Identified Cep. Antimissile System 41095 | -2/Protoforge | Spotted Executioner 41099 | -2/Protoforge | Spotted Executioner 41108 | -2/Protoforge | Found Exp. System Purifier 41112 | -2/Protoforge | Found Cep. XC Strikerail 41114 | -2/Protoforge | UFD reported confirmed Drillbomb installation 41138 | -2/Protoforge | Spotted Hotshot 41143 | -2/Protoforge | Spotted Hotshot 41144 | -2/Protoforge | Spotted Hotshot 41150 | -2/Protoforge | Destroyed Hotshot 41156 | -2/Protoforge | Destroyed Hotshot 41165 | -2/Protoforge | Destroyed Hotshot 41181 | -2/Protoforge | Spotted Striker 41185 | -2/Protoforge | Spotted Striker 41193 | -2/Protoforge | Destroyed Striker 41202 | -2/Protoforge | Destroyed Striker 41215 | -2/Protoforge | Destroyed Hotshot 41254 | -2/Protoforge | Destroyed 7 combat bots 41270 | -2/Protoforge | Found Cep. XC Strikerail 41277 | -2/Protoforge | Botcube activated 41301 | -2/Protoforge | Botcube completed mutation into legged form, armed with 2 guns 41315 | -2/Protoforge | Found Faulty Cep. XC Strikerail 41316 | -2/Protoforge | Found Faulty Cep. XC Strikerail 41362 | -2/Protoforge | Found Crosscalibrator 41365 | -2/Protoforge | Found Cep. Concussive Dispersal Blaster 41372 | -2/Protoforge | Spotted Immortal 41372 | -2/Protoforge | Spotted Immortal 41456 | -2/Protoforge | Destroyed Immortal 41471 | -2/Protoforge | Destroyed Immortal 41483 | -2/Protoforge | Found Exp. Cloaking Device 41489 | -2/Protoforge | Spotted Decapitator 41489 | -2/Protoforge | Spotted Decapitator 41489 | -2/Protoforge | Spotted Decapitator 41489 | -2/Protoforge | Spotted Decapitator 41510 | -2/Protoforge | Spotted Decapitator 41522 | -2/Protoforge | Spotted Decapitator 41522 | -2/Protoforge | Spotted Decapitator 41522 | -2/Protoforge | Spotted V663-c 41527 | -2/Protoforge | Destroyed Decapitator 41541 | -2/Protoforge | Spotted V273-y 41545 | -2/Protoforge | Destroyed V273-y 41548 | -2/Protoforge | Destroyed V663-c 41555 | -2/Protoforge | Found Prototype Device 41555 | -2/Protoforge | Identified Exp. Shock Absorption System 41558 | -2/Protoforge | Found Prototype Device 41558 | -2/Protoforge | Identified Exp. Thermal Defense Suite 41563 | -2/Protoforge | Found Cep. RG22 Armor 41574 | -2/Protoforge | Found Unknown Device 41574 | -2/Protoforge | Identified Launcher Loader 41608 | -2/Protoforge | Found Cep. Combat Aerolev Unit 41612 | -2/Protoforge | Found Cep. Gyrokinetic System 41628 | -2/Protoforge | Found Cep. Combat Aerolev Unit 41632 | -2/Protoforge | Found Cep. Combat Aerolev Unit 41635 | -2/Protoforge | Found Cep. Combat Aerolev Unit 41732 | -2/Protoforge | Spotted V162-k 41732 | -2/Protoforge | Spotted V809-g 41732 | -2/Protoforge | Spotted V195-u 41732 | -2/Protoforge | Found Cep. Antigrav Storage Unit 41735 | -2/Protoforge | Spotted V654-v 41758 | -2/Protoforge | Destroyed V809-g 41761 | -2/Protoforge | Destroyed V654-v 41791 | -2/Protoforge | Destroyed Decapitator 41806 | -2/Protoforge | Destroyed V162-k 41829 | -2/Protoforge | Build established: Scavenger-Mutant 41837 | -2/Protoforge | Destroyed V195-u 41870 | -2/Protoforge | Found Cep. Chromion Battery 41875 | -2/Protoforge | Found Cep. NT7 Matterbank 41877 | -2/Protoforge | Found Cep. Chromion Battery 41892 | -2/Protoforge | Found Cep. RG22 Armor 41896 | -2/Protoforge | Found Cep. Combat Aerolev Unit 41902 | -2/Protoforge | Found Cep. Matter Streamer 41903 | -2/Protoforge | Found Exp. EM Disruption Field 41919 | -2/Protoforge | Found Prototype Protection 41919 | -2/Protoforge | Identified Med. Regenerative Plating 41936 | -2/Protoforge | Found Faulty Cep. Zero-point Core 41939 | -2/Protoforge | Found Faulty Cep. Zero-point Core 42055 | -2/Protoforge | Found Botcube 42064 | -2/Protoforge | Found Exp. System Purifier 42065 | -2/Protoforge | Found Exp. System Purifier 42094 | -2/Protoforge | Spotted Striker 42097 | -2/Protoforge | Spotted Striker 42099 | -2/Protoforge | Spotted Executioner 42115 | -2/Protoforge | Core integrity fell below 20% 42243 | -2/Protoforge | Spotted Decapitator 42243 | -2/Protoforge | Spotted Decapitator 42243 | -2/Protoforge | Spotted Decapitator 42294 | -2/Protoforge | Spotted V628-p 42294 | -2/Protoforge | Spotted V255-l 42296 | -2/Protoforge | Spotted Immortal 42325 | -2/Protoforge | Destroyed V255-l 42353 | -2/Protoforge | Destroyed V628-p 42361 | -2/Protoforge | Found Prototype Device 42361 | -2/Protoforge | Identified Exp. EM Shield 42369 | -2/Protoforge | Found Prototype Ballistic Gun 42369 | -2/Protoforge | Identified Multirail 42372 | -2/Protoforge | Found Unknown Protection 42372 | -2/Protoforge | Identified Adv. Powered Armor 42423 | -2/Protoforge | Spotted Immortal 42467 | -2/Protoforge | Destroyed Immortal 42480 | -2/Protoforge | Destroyed Immortal 42489 | -2/Protoforge | Found Cep. Antimissile System 42491 | -2/Protoforge | Found Exp. Jetlance 42512 | -2/Protoforge | Spotted V085-g 42552 | -2/Protoforge | Destroyed V085-g 42562 | -2/Protoforge | Found Exp. Focal Shield 42617 | -2/Protoforge | Found Prototype Device 42617 | -2/Protoforge | Identified Exp. Shield Generator 42621 | -2/Protoforge | Found Cep. Core Shell 42622 | -2/Protoforge | Found Cep. Beam Splitter 42625 | -2/Protoforge | Found Exp. EM Disruption Field 42631 | -2/Protoforge | Found Exp. Force Field 42659 | -2/Protoforge | Destroyed Decapitator 42665 | -2/Protoforge | Destroyed Decapitator 42721 | -2/Protoforge | Spotted V493-m 42728 | -2/Protoforge | Destroyed V493-m 42745 | -2/Protoforge | Found Cep. XC Strikerail 42755 | -2/Protoforge | Found Faulty Cep. XC Strikerail 42899 | -2/Protoforge | Found Faulty Cep. XC Strikerail 43006 | -2/Protoforge | Spotted AP7-3 43006 | -2/Protoforge | Spotted AP7-3 43080 | -2/Protoforge | Destroyed AP7-3 43096 | -2/Protoforge | Destroyed AP7-3 43167 | -2/Protoforge | Found Faulty Cep. Impact Drone Bay 43169 | -2/Protoforge | Found Faulty Cep. Impact Drone Bay 43171 | -2/Protoforge | Found Faulty Cep. Cloak Mesh 43172 | -2/Protoforge | Found Faulty Cep. Cloak Mesh 43300 | -2/Protoforge | Additional patrols dispatched to research labs 43303 | -2/Protoforge | Found Transdimensional Reconstructor 43336 | -2/Protoforge | Found Cep. Networked Targeting System 43363 | -2/Protoforge | Found Cep. Core Shell 43365 | -2/Protoforge | Found Faulty Exp. Force Field 43398 | -2/Protoforge | Found Cep. XC Strikerail 43406 | -2/Protoforge | Found Cep. Plasma Driver 43428 | -2/Protoforge | Spotted V529-w 43428 | -2/Protoforge | Spotted V375-w 43439 | -2/Protoforge | Found Cep. Tactical Fusion Warhead 43494 | -2/Protoforge | Found Cep. Concussive Dispersal Blaster 43518 | -2/Protoforge | Destroyed Decapitator 43520 | -2/Protoforge | Destroyed Decapitator 43532 | -2/Protoforge | Destroyed Decapitator 43643 | -2/Protoforge | Found Exp. Active Sensor Suite 43768 | -2/Protoforge | Found Cep. Combat Aerolev Unit 43770 | -2/Protoforge | Found Faulty Cep. Gyrokinetic System 43774 | -2/Protoforge | Found Faulty Cep. Combat Aerolev Unit 44031 | -2/Protoforge | Found Faulty Cep. Gyrokinetic System 44311 | -2/Protoforge | Found Cep. Core Shell 44381 | -2/Protoforge | Spotted Executioner 44382 | -2/Protoforge | Spotted Executioner 44383 | -2/Protoforge | Spotted Executioner 44388 | -2/Protoforge | Spotted Executioner 44390 | -2/Protoforge | Spotted Striker 44391 | -2/Protoforge | Spotted Striker 44392 | -2/Protoforge | Spotted Striker 44393 | -2/Protoforge | Spotted Striker 44406 | -2/Protoforge | Destroyed Striker 44430 | -2/Protoforge | Destroyed Executioner 44442 | -2/Protoforge | Destroyed Executioner 44448 | -2/Protoforge | Destroyed Executioner 44483 | -2/Protoforge | Lost 16 allies 44493 | -2/Protoforge | Spotted Executioner 44499 | -2/Protoforge | Spotted Executioner 44518 | -2/Protoforge | Spotted Executioner 44538 | -2/Protoforge | Discovered new exit (range 8) 44541 | -2/Protoforge | Entered Access 44541 | -1/Access | Evolved 2 slots: Utility x1, Weapon x1 44714 | -1/Access | Identified exit to Command 44746 | -1/Access | Entered Command 44838 | -1/Command | Build established: Scavenger-Scout 44875 | -1/Command | Disengaged cave seal 44948 | -1/Command | High security lockdown imminent 44977 | -1/Command | Lost 3 allies 45015 | -1/Command | Lost 3 allies 45028 | -1/Command | High security lockdown engaged 45155 | -1/Command | Build established: Hacker-Scout 45227 | -1/Command | Spotted Striker 45227 | -1/Command | Spotted Investigator 45227 | -1/Command | Scanned by Researcher 45229 | -1/Command | Destroyed Investigator 45260 | -1/Command | Destroyed Striker 45270 | -1/Command | Lost 3 allies 45284 | -1/Command | Destroyed 19 combat bots 45393 | -1/Command | Spotted Executioner 45395 | -1/Command | Destroyed Executioner 45426 | -1/Command | Lost 3 allies 45454 | -1/Command | Destroyed 18 combat bots 45516 | -1/Command | Spotted Executioner 45516 | -1/Command | Spotted Striker 45523 | -1/Command | Destroyed Striker 45531 | -1/Command | Destroyed Executioner 45563 | -1/Command | Spotted Executioner 45567 | -1/Command | Destroyed Executioner 45573 | -1/Command | Spotted Striker 45573 | -1/Command | Spotted Striker 45578 | -1/Command | Spotted Striker 45578 | -1/Command | Spotted Executioner 45579 | -1/Command | Spotted Executioner 45585 | -1/Command | Destroyed Executioner 45589 | -1/Command | Destroyed Executioner 45603 | -1/Command | Destroyed Striker 45620 | -1/Command | Allies destroyed Striker 45624 | -1/Command | Destroyed 26 combat bots 45630 | -1/Command | Destroyed Striker 45662 | -1/Command | Lost 7 parts (1n4u2w) 45818 | -1/Command | Build established: Scavenger-Scout 45824 | -1/Command | Spotted Investigator 45824 | -1/Command | Spotted Striker 45825 | -1/Command | Spotted Striker 45825 | -1/Command | Spotted Executioner 45828 | -1/Command | Destroyed Striker 45830 | -1/Command | Destroyed Executioner 45833 | -1/Command | Spotted Executioner 45833 | -1/Command | Destroyed Investigator 45833 | -1/Command | Destroyed Striker 45844 | -1/Command | Spotted Striker 45845 | -1/Command | Spotted Striker 45850 | -1/Command | Destroyed Striker 45850 | -1/Command | Destroyed Striker 45865 | -1/Command | Destroyed Executioner 45886 | -1/Command | Destroyed 38 combat bots 45971 | -1/Command | Spotted M Guard 45971 | -1/Command | Spotted M Guard 46187 | -1/Command | Destroyed 12 combat bots 46202 | -1/Command | Spotted Executioner 46202 | -1/Command | Spotted Striker 46202 | -1/Command | Spotted Striker 46202 | -1/Command | Destroyed Striker 46206 | -1/Command | Destroyed Striker 46208 | -1/Command | Destroyed Executioner 46327 | -1/Command | Spotted Combat Programmer 46327 | -1/Command | Spotted Combat Programmer 46372 | -1/Command | Allies destroyed Combat Programmer 46389 | -1/Command | System corruption reached 10% 46401 | -1/Command | Lost 3 allies 46656 | -1/Command | Build established: Scavenger-Skirmisher 47421 | -1/Command | Destroyed Combat Programmer 47464 | -1/Command | Allies destroyed M Guard 47469 | -1/Command | Allies destroyed M Guard 47469 | -1/Command | All MAIN.C guards destroyed 47494 | -1/Command | Lost 6 parts (1p1n2u2w) 47494 | -1/Command | Lost 4 allies 48269 | -1/Command | Build established: Scavenger-Mutant 48288 | -1/Command | Found Quantum Capacitor 48419 | -1/Command | Spotted B-99 Colossus 48580 | -1/Command | Met MAIN.C 48664 | -1/Command | Destroyed MAIN.C Shell 48666 | -1/Command | MAIN.C activated Command garrisons 48677 | -1/Command | 0b10 Conduit disabled 48763 | -1/Command | Lost 5 allies 48783 | -1/Command | Lost 13 parts (1p2n9u1w) 48811 | -1/Command | Core integrity fell below 50% 48834 | -1/Command | Destroyed 28 combat bots 48847 | -1/Command | Lost 4 parts (2u2w) 49008 | -1/Command | Destroyed MAIN.C 49010 | -1/Command | Discovered new exit (range 37) 49010 | -1/Command | Discovered new exit (range 94) 49010 | -1/Command | Extracted map data and part IDs from MAIN.C's data core 49059 | *** | Heading to fleet! Last Messages --------------- 49013_ Slug penetrates H-88 Terminator. 49016_ Penetrated by Slug. 49016_ Slug penetrates H-88 Terminator. 49027_ The unstable cave ceiling collapses. 49032_ KE Penetrator destroyed. 49033_ Slug penetrates Wall. 49033_ Slug penetrates Operations Mainframe. 49033_ Hvy. Quantum Rifle destroyed. 49035_ The unstable cave ceiling collapses. 49041_ Acquired 1 matter. 49041_ Acquired 30 matter. 49043_ K-01 Serf destroyed. 49046_ Acquired 37 matter. 49047_ Penetrated by Slug. 49047_ Quantum Capacitor destroyed. 49047_ Slug penetrates Wall. 49048_ System corrupted: Component data lost. 49050_ Slug penetrates Wall. [Achievement: 75k Club] [Achievement: 100k Club] Map ----- +----------------------------------------------------+ | ! #?????????????######+####### # #??? | | ############### # # #??? | | + + # # #??? | | ###+################### """" # # #??? | | # #????????????????# """" # # #??? | | "T #????????????????# """" + + #??? | | "" #?????????###????# """" ## # #??? | | # #???????### ###### ## # #??? | | ## ##???????# / # ## # #??? | | ?# #????????# # ## # #??? | | ?# #????????# # ## # #??? | | ?# #???###### # ## # #??? | | ## ##### # !! # ## # #??? | | # # !! ####+########## # #??? | | # " + #??# #?# ! + #########??? | | #= ##### # % *% #??# ### # #??????????? | | #%!########## !%! #??# + # #??????????? | | #* #?#####"+"##??##### # #?????????## | | + #?????" "???????#] # #?????????#? | | # #?????#]]!#???????# # #?????????#? | | ## #?????#]!/#???????######## #?????????#? | | ## #?????#]! #??????????????# #?????????#? | | ## #?????# #??????????????# #?????????#? | | ## #?????# !#?#####????????# #?????????#? | | ## ####### #?# #????????# #?????????#? | | ### #""#### @ ##########+#?????????#? | | ??# ^ ## #?????????#? | | ### ^ ## #########?#? | | ^ ###########" """" ## #?#? | | ###???????## """" ## #?#? | | ### "" #????????#! """" ## #?#? | | ### """" #????????# """" ## #?#? | | # """" ###????????# ## #?#? | | + ^ "" #???######## ## #?#? | | # #???# ### ## ## ######+##### | | # #???# [ | | # ###?# !%! | | #!* #?# [ | | ###= #?# ### #######+##### | | ### ^ #?## ###### % #?# #?#? | | # #??# # #?# #?#? | | # ^ #??# # # #?# #?#? | | # #??# # #?# #?#? | | + #??# # ?# #?## | | # #??# # ## #??? | | # #??# # # ###+#####??? | | # ############# ### #?# #??????? | | # #########" ## # ###?# #??????? | | ### |% # #?# #??????? | | ??# % !% ##?# #??????? | +----------------------------------------------------+ Best States ------------- Heat Dissipation 107 Energy Generation 78 Energy Capacity 2050 Matter Stores 1042 Matter Capacity 1050 Sight Range 24 Robot Scan Range 20 Terrain Scan Density 210 ECM Strength 2 Jamming Range 16 Cloak Strength 9 Power Amplification 30 Additional Mass Support 25 Base Temperature (-) 200 EM Shielding 4 Armor Coverage 1200 Resistance: KI 30 Resistance: TH 75 Resistance: EX 50 Resistance: EM 75 Core Shielding 90 Propulsion Shielding 90 Weapon Shielding 90 Point Defense Rating 480 Phase Shifting 15 Evasion (%) 93 Targeting Accuracy 12 Melee Accuracy 8 Launcher Accuracy 60 Target Analysis 15 Core Analysis 12 Armor Integrity Analysis 30 Recoil Reduction 2 Energy Filtering 30 Particle Charging 25 Kinecelleration 66 Offensive Hacking 61 Defensive Hacking 20 Item Schematics ----------------- Exp. Q-thruster | -3/Testing | Hacked Quantum Shading Machine | -3/Testing | Hacked Adv. Transmission Jammer | -3/Testing | Hacked Jamming Amplifier | -2/Research | Hacked Exp. Cooling System | -2/Research | Hacked Exp. Hacking Suite | -2/Research | Hacked Exp. Actuator Array | -2/Quarantine | Scanalyzed Adv. Point Defense System | -2/Quarantine | Hacked Cld. Phase Gun | -2/Protoforge | Archive Adv. EM Shield | -2/Protoforge | Archive Med. Reactive Plating | -2/Protoforge | Scanalyzed Robot Schematics ------------------ None Fabricated ------------ Hvy. Shield Leg | x1 | -4/Factory | Preloaded Diametric Drive | x1 | -4/Factory Thermal Barrier | x1 | -3/Testing | Preloaded Exp. Q-thruster | x1 | -3/Testing Adv. Transmission Jammer | x2 | -3/Testing Exp. Cooling System | x1 | -2/Research Jamming Amplifier | x2 | -2/Research Repaired ---------- Nothing Studied --------- Q-thruster | -3/Research | Hacked Nuclear Pulse Array | -3/Research | Hacked Impulse Thruster Array | -3/Testing | Hacked Mic. Antimatter Reactor | -3/Testing | Hacked Lgt. Quantum Reactor | -2/Quarantine | Hacked Alien Tech Used ----------------- Integrated Reactor Core Expander Core Reset Matrix Subatomic Replicator Dimensional Node Initializer Supercharged TR Achievements -------------- 100k Club 75k Club Anti-science Crusade DIY Cooler Inventory(Loot) No Room For Error Not Immortal After All We Are One Well-fed Force Field Worth The Wait Challenges ------------ None Game ------ Seed ChaosFireObliterator Manual? 0 Play Time 13:07:11 Cumulative 801.4 hours Start 2026.07.30 @ 19:54:17 End 2026.08.01 @ 02:48:11 Sessions 21 Manual Loads 0 Difficulty Rogue Special Mode None Game No. 293 Rogue 289 Adventurer 4 Explorer 0 Win Type 2 Total 22 Types 9/2/7/0/0/0/2/2/0/0 Lore% 89 Gallery% 79 Achievement% 64 Wizard Run 0 Options --------- Layout 1 ASCII 0 Keyboard 0 Movement Arrows Keybinds 0 Fullscreen 1 Font 40/SmallcapsGlow Map View 50x40 Zoom Use 0% Tactical HUD 1 Map Filters NONE Filters NONE Steam 1 RUN: cf5caf71-aa03-4b27-b332-a3a1ea42052c